{"text_format":"1","workbook":"xlsx","n_sheets":39,"sheets":["Instructions","Select Return to Export","Supplier","WrkA","SUsch1","SUsch2","SUsch5A","SUsch5D","SUsch5E","SUsch5G","SUsch5H","SUsch7A","SUsch7B","SUsch7C","Importer","IMsch1A","IMsch2","IMsch5X","IMsch11","IMsch11A","Exporter","EXsch7A","EXsch7B","EXsch11","EXsch11A","Transporter","Xsch1","Xsch2","Xsch3","Blender","BLsch1","BLsch2","Distributor","DIsch1","DIsch2","DIsch5","DIsch5X","DIsch6","NoMacro"],"not_rendered":{"charts":0,"images":344,"macros":1,"external_links":0,"defined_names":7,"comments":0,"pivot_tables":0},"unopened":[],"bounds":{"document_bytes":16777216,"sheet_cells":100000,"rows_first":2000,"rows_last":500,"rows_between":2000,"halvings":0,"cell_chars":16384,"cell_head_chars":4096},"cells_cut":0,"cells_raw":0,"read":"whole","date_system":"1900"}

{"sheet":"Instructions","index":0,"n_rows":8,"n_cols":14,"rows_kept":8,"cut":false,"hidden":true,"merged":[[6,0,6,11],[0,0,0,11],[1,0,1,11]]}
["West Virginia Tax Return Input ",null,null,null,null,null,null,null,null,null,null,null,"2022-01-04","2023-01-22"]
["This worksheet is designed to assist in the submission of Motor Fuel tax return information to the  West Virginia Tax Department.\nIMPORTANT NOTE:  Do not separate schedule rows with 'blank' lines. Do NOT change the format\nof any cells.  This spreadsheet is read by an automated process that cannot detect any format changes that you may make.  For this\nreason, it is strongly suggested that this 'Master' spreadsheet should NOT be changed in any way.  Instead it is suggested that copies\nare made and named in such a way that 'describes' what information the spreadsheet contains.  For example, a spreadsheet that\ncontains tax return information for June 2018, could be named as one of the following:\n\n                                  WV-FUELTAX-SU0618.xls     or     TAX-FILINGS-201806.xls\n\nOnce the spreadsheet is complete and the export process has been run, the output file will need to be submitted to the \nWest Virginia Tax Department using the website located at  https://mytaxes.wvtax.gov/\nIf you do not have the login information needed, please contact us at taxwvmotorfuel@wv.gov\n"]
[null,"Links:"]
[null,"My Taxes -",null,"https://mytaxes.wvtax.gov/",null,"Email Us-",null,"TaxWVMotorfuel@WV.gov"]
[]
[null,null,null,null,null,"Check for Update -",null,"http://tax.wv.gov/Business/MotorFuel"]
["Step by step instructions are listed below (scroll down to view all the instructions if necessary):\n\n1.  Enter your account number and Period End Date on the 'Select Returns to Export' sheet. Select The Return to work on.\n\n2.  Enter all data that is required by the WV Tax Department in the format required.  There are informational guidelines\n     on the column headers to explain the required formats.  \n\n3.  Once all tax information has been entered, and Validate button detects no errors, go to the 'Select Returns to Export' sheet\n     and follow the instructions."]
["Next page -->"]

{"sheet":"Select Return to Export","index":1,"n_rows":5,"n_cols":7,"rows_kept":5,"cut":false,"hidden":true,"merged":[[1,0,1,6],[2,0,2,6]]}
["Select Return to Export"]
["On this page you select the return to export when the 'Export Selected Return' button is clicked. Each sheet has a 'Validate' button located in column 'A'.  If there are errors in the data, a detailed message will be displayed describing the error.  These errors must be corrected before the data can be exported.  When the export is complete, a window will display indicating that your file has been saved and where it was saved.  The final step is to go to the  'My Taxes'  Website @   https://mytaxes.wvtax.gov/   and submit this exported file. \n\nStep 1: Enter your Account number and The period end Date you are reporting.\nStep 2: Select the return you wish to work with by checking the appropriate box.\nStep 3: Click the small button by the checkbox you checked to go to the return.\nStep 4: Complete The Return and the Schedules.\nStep 5: Return to this sheet and Click the Export Button. Submit the exported file on the 'My Taxes Website'\n\nBe sure to enter your 8 digit account number and Filing Period End date before proceeding.\n"]
[]
[null,null,"Account Number:",null,null,null,"Period End:\nMM/DD/YY"]
["Enter Your 8-digit account number found at the top right of your paper return --->",null,null,null,"Enter The period ending Date --->"]

{"sheet":"Supplier","index":2,"n_rows":31,"n_cols":31,"rows_kept":31,"cut":false,"hidden":true,"merged":[[18,3,18,4],[21,3,21,4],[22,3,22,4],[18,5,18,8]]}
["Supplier / Permissive Supplier",null,null,null,null,null,null,null,null,null,null,null,null,null,null,null,null,null,null,null,null,null,null,null,null,null,"Var","Flat","Year","Propane","CNG/Other"]
[null,null,null,null,null,null,null,null,null,null,null,null,null,null,null,null,null,null,null,null,null,null,null,null,null,null,0.152,0.20499999999999999,2021,3.5000000000000003E-2,2.8000000000000001E-2]
[null,"Please complete schedules First.\nDo not change Gallon amounts on this sheet"]
[]
[null,null,null,null,"Undyed","Dyed Diesel /",null,"Aviation",{"$f":"IF(AC2>2013,\"Compressed\",\"Aviation\")","v":"Compressed"},{"$f":"IF(AC2>2013,\"LNG\",\"Clear Kerosene \")","v":"LNG"}]
["Line",null,"Gasoline ","Gasohol",{"$f":"IF(AC2>2013,\"Diesel / Kerosene\",\"Diesel\")","v":"Diesel / Kerosene"},"Dyed Kerosene","Propane",{"$f":"IF(AC2>2013,\"Fuels\",\"Gasoline\")","v":"Fuels"},{"$f":"IF(AC2>2013,\"Natural Gas\",\"Jet Fuel\")","v":"Natural Gas"},"/  Other"]
[]
["1","NET TAXABLE GALLONS\nGet totals from Schedules…"]
["2","TAX RATE",{"$f":"$AA$2+$AB$2","v":0.35699999999999998},{"$f":"$AA$2+$AB$2","v":0.35699999999999998},{"$f":"$AA$2+$AB$2","v":0.35699999999999998},{"$f":"$AA$2","v":0.152},{"$f":"IF($AC$2>2013,$AD$2,$AA$2)","v":3.5000000000000003E-2},{"$f":"$AA$2","v":0.152},{"$f":"IF($AC$2>2013,ROUND($AE$2,3)+$AB$2,$AA$2)","v":0.23299999999999998},{"$f":"IF($AC$2>2013,ROUND($AE$2/1.554,3)+ROUND($AB$2/1.554,3),$AA$2+$AB$2)","v":0.15}]
["3","TAX DUE",{"$f":"ROUND(C8*C9,2)","v":0},0,0,0,0,0,0,0]
["4","EXEMPT FUEL (GALLONS)\nGet totals from Schedules 5H & 5G…"]
["5",{"$f":"CONCATENATE(\"TAX DUE (Line 4 x \",$AB$2,\")\")","v":"TAX DUE (Line 4 x 0.205)"},null,null,null,null,{"$f":"IF(AC2>2013,ROUND(G11*ROUND($AB$2/1.367,3),2),ROUND(G11*$AB$2,2))","v":0},{"$f":"IF('Select Return to Export'!G5>DATE(2017,6,30),0,ROUND(H11*$AB$2,2))","v":0},{"$f":"IF($AC$2>=2014,0,ROUND(I11*$AB$2,2))","v":0}]
["6","TOTAL TAX DUE",{"$f":"C10+C12","v":0},{"$f":"D10+D12","v":0},0,0,0,0,0,0]
[]
["1","GRAND TOTAL TAX DUE",{"$f":"ROUND(SUM(C13:J13),2)","v":0}]
["2","Distributor Discount"]
["3","Administrative Discount       - Only if timely filed.                   \n(Line 1 multiplied by 0.001)  - Maximum $5,000"]
["4","Gross Amount Due",{"$f":"MAX(C15-C16-C17,0)","v":0}]
["5","Default Payment\n(Tax previously defaulted then paid)",null,"Enter Distributor's Name"]
["6","Default Deduction      Must have submitted a Notice of \n                        Tax Payment Default Notice (WV/MFT- 512)"]
["7","Total Amount Due",{"$f":"MAX(C18+C19-C20,0)","v":0}]
["8","Previous Month Credit",null,"Period Ending\nMMDDYYYY"]
["9","Exporter Return Credit",null,"Period Ending\nMMDDYYYY"]
["10","Total Credits",{"$f":"C22+C23","v":0}]
["11","Net Amount Tax Due",{"$f":"IF((C21-C24)>0,(C21-C24),0)","v":0}]
["12","NON-WAIVABLE INTEREST"]
["13","ADDITIONS TO TAX"]
["14","TOTAL TAX AND LATE FILING CHARGES DUE",{"$f":"MAX(C25+C26+C27,0)","v":0}]
["15","Overpayment Amount",{"$f":"IF((C24-C21-C27-C26)>0,(C24-C21-C27-C26),0)","v":0}]
["16","REFUND"]
["17","CREDIT"]

{"sheet":"WrkA","index":3,"n_rows":22,"n_cols":31,"rows_kept":22,"cut":false,"hidden":true,"merged":[]}
["Worksheet A"]
[null,null,null,null,null,null,null,null,null,null,null,null,null,null,null,null,null,null,null,null,null,null,null,null,null,null,0.152,0.20499999999999999,2021,3.5000000000000003E-2,2.8000000000000001E-2]
[]
[]
[null,null,null,null,"Undyed","Dyed Diesel /",null,"Aviation",{"$f":"IF(AC2>2013,\"Compressed\",\"Aviation\")","v":"Compressed"},{"$f":"IF(AC2>2013,\"LNG\",\"Clear Kerosene \")","v":"LNG"}]
["Line",null,"Gasoline ","Gasohol",{"$f":"IF(AC2>2013,\"Diesel / Kerosene\",\"Diesel\")","v":"Diesel / Kerosene"},"Dyed Kerosene","Propane",{"$f":"IF(AC2>2013,\"Fuels\",\"Gasoline\")","v":"Fuels"},{"$f":"IF(AC2>2013,\"Natural Gas\",\"Jet Fuel\")","v":"Natural Gas"},"/  Other"]
[]
["1","Total Gallons sold WV Tax Collected\nSchedule 5A      and 5E",0,0,0,0,0,0,0,0]
["2","Total Gallons sold WV Tax Collected\nSchedule 5H",null,null,null,null,0,0,0]
["3","Total Gallons sold WV Tax Collected\nSchedule 5D      and 7B",0,0,0,0,0,0,0,0]
["4","Total Gallons sold WV Tax Collected\nSchedule 5G",null,null,null,null,0,0,0]
["Calculation of Distributor Discount"]
["5",{"$f":"CONCATENATE(\"Multiply line 3 by flat rate\")","v":"Multiply line 3 by flat rate"},{"$f":"ROUND(C10*$AB$2,2)","v":0},{"$f":"ROUND(D10*$AB$2,2)","v":0},{"$f":"ROUND(E10*$AB$2,2)","v":0},null,null,null,null,{"$f":"IF($AC$2>2013,ROUND(J10*ROUND($AB$2/1.554,3),2),ROUND(J10*$AB$2,2))","v":0}]
["6",{"$f":"CONCATENATE(\"Multiply line 4 by flat rate\")","v":"Multiply line 4 by flat rate"},null,null,null,null,{"$f":"IF($AC$2>2013,ROUND(G11*ROUND($AB$2/1.367,3),2),ROUND(G11*$AB$2,2))","v":0},{"$f":"ROUND(H11*$AB$2,2)","v":0},{"$f":"IF($AC$2>2013,ROUND(I11*$AB$2,2),ROUND(I11*$AB$2,2))","v":0}]
["7",{"$f":"CONCATENATE(\"Multiply lines 3 and 4 by Variable Rate \",CHAR(10),\"(CNG @ Combined Rate)\")","v":"Multiply lines 3 and 4 by Variable Rate \n(CNG @ Combined Rate)"},{"$f":"ROUND(SUM(C10:C11)*$AA$2,2)","v":0},0,0,0,{"$f":"IF($AC$2>2013,ROUND(SUM(G10:G11)*$AD$2,2),ROUND(SUM(G10:G11)*$AA$2,2))","v":0},0,{"$f":"IF($AC$2>2013,ROUND(SUM(I10:I11)*(ROUND($AE$2,3)+$AB$2),2),ROUND(SUM(I10:I11)*$AA$2,2))","v":0},{"$f":"IF($AC$2>2013,ROUND(SUM(J10:J11)*ROUND($AE$2/1.554,3),2),ROUND(SUM(J10:J11)*$AA$2,2))","v":0}]
["8","Add Lines 5, 6, and 7",{"$f":"SUM(C13:C15)","v":0},{"$f":"SUM(D13:D15)","v":0},0,0,0,0,0,0]
["9","Line 8 total\nIf less than Zero, Enter Zero",{"$f":"MAX(ROUND(SUM(C16:J16),2),0)","v":0}]
["10","Maximum Discount\nMultiply line 9 by .0075",{"$f":"MAX(ROUND(C17*0.0075,2),0)","v":0}]
[]
["11","Gross Taxable Gallons\nLines 1 + 2 + 3 + 4",{"$f":"C8+C9+C10+C11","v":0},{"$f":"D8+D9+D10+D11","v":0},0,0,0,0,0,0]
["12","Tax Paid Receipts\nSchedule 1",0,0,0,0,0,0,0,0]
["13","Net Taxable Gallons\nLine 11 - Line 12  Supplier Line 1",{"$f":"MAX(C20-C21,0)","v":0},0,0,0,0,0,0,0]

{"sheet":"SUsch1","index":4,"n_rows":8,"n_cols":18,"rows_kept":8,"cut":false,"hidden":true,"merged":[]}
["Supplier / Permissive Supplier Schedule of Tax-Paid Receipts"]
["Schedule 1 - Tax-Paid Receipts"]
[]
[null,null,"Product","Product","Carrier","Carrier","Transportation","Point of","Point of","Seller","Seller","Date","Bill of Lading /","Gross","Net","Invoiced"]
[null,null,"Type","Name","Name","FEIN","Mode","Origin","Destination","Name","FEIN","Received","Document Number","Gallons","Gallons","Gallons"]
[null,null,"Use FTA Product Codes. \n\nFor a List of Codes,  Click This Button.",null,"Maximum of 35 characters","Federal Employer Identification Number of the carrier for this transaction.\nDo not enter dashes or spaces. If FEIN begins with zero(s) enter a single quote first.\nEx: '012345678","B             Barge\nBA  Book Adj.\nJ              Truck\nPL       Pipeline\nR            Rail\nRT     Removed\n       from Terminal\nS     Ship\nST  Stationary Transfer","Enter either TCN or City and State\nMaximum of 35 characters","Enter either TCN or City and State\nMaximum of 35 characters","Maximum of 35 characters","Federal Employer Identification Number of the Seller for this transaction.\nDo not enter dashes or spaces. If FEIN begins with zero(s) enter a single quote first.\nEx: '012345678","Use format \nMM/DD/YYYY","Bill of Lading /\nManifest Number","Enter whole gallons only. Do not enter commas or decimal points.","Enter whole gallons only. Do not enter commas or decimal points.","Enter whole gallons only. Do not enter commas or decimal points."]
[]
[null,null,null,null,null,null,null,null,null,null,null,null,null,null,null,null,null,""]

{"sheet":"SUsch2","index":5,"n_rows":8,"n_cols":18,"rows_kept":8,"cut":false,"hidden":true,"merged":[]}
["Supplier / Permissive Supplier Schedule of Tax-Unpaid Receipts"]
["Schedule 2 - Tax-Unpaid Receipts"]
[]
[null,null,"Product","Product","Carrier","Carrier","Transportation","Point of","Point of","Seller","Seller","Date","Bill of Lading /","Gross","Net","Invoiced"]
[null,null,"Type","Name","Name","FEIN","Mode","Origin","Destination","Name","FEIN","Received","Document Number","Gallons","Gallons","Gallons"]
[null,null,"Use FTA Product Codes. \n\nFor a List of Codes,  Click This Button.",null,"Maximum of 35 characters","Federal Employer Identification Number of the carrier for this transaction.\nDo not enter dashes or spaces. If FEIN begins with zero(s) enter a single quote first.\nEx: '012345678","B             Barge\nBA  Book Adj.\nJ              Truck\nPL       Pipeline\nR            Rail\nRT     Removed\n       from Terminal\nS     Ship\nST  Stationary Transfer","Enter either TCN or City and State\nMaximum of 35 characters","Enter either TCN or City and State\nMaximum of 35 characters","Maximum of 35 characters","Federal Employer Identification Number of the Seller for this transaction.\nDo not enter dashes or spaces. If FEIN begins with zero(s) enter a single quote first.\nEx: '012345678","Use format \nMM/DD/YYYY","Bill of Lading /\nManifest Number","Enter whole gallons only. Do not enter commas or decimal points.","Enter whole gallons only. Do not enter commas or decimal points.","Enter whole gallons only. Do not enter commas or decimal points."]
[]
[null,null,null,null,null,null,null,null,null,null,null,null,null,null,null,null,null,""]

{"sheet":"SUsch5A","index":6,"n_rows":6,"n_cols":16,"rows_kept":6,"cut":false,"hidden":true,"merged":[]}
["Supplier / Permissive Supplier Schedule of Disbursements"]
["Schedule 5A - Tax collected sales to Unlicensed Distributors"]
[]
[null,null,"Product","Product","Carrier","Carrier","Transportation","Point of","Point of","Purchaser","Purchaser","Date","Bill of Lading /","Gross","Net","Invoiced"]
[null,null,"Type","Name","Name","FEIN","Mode","Origin","Destination","Name","FEIN","Received","Document Number","Gallons","Gallons","Gallons"]
[null,null,"Use FTA Product Codes. \n\nFor a List of Codes,  Click This Button.","Maximum of 35 characters","Maximum of 35 characters","Federal Employer Identification Number of the carrier for this transaction.\nDo not enter dashes or spaces. If FEIN begins with zero(s) enter a single quote first.\nEx: '012345678","B             Barge\nBA  Book Adj.\nJ              Truck\nPL       Pipeline\nR            Rail\nRT     Removed\n       from Terminal\nS     Ship\nST  Stationary Transfer","Enter either TCN or City and State\nMaximum of 35 characters","Enter either TCN or City and State\nMaximum of 35 characters","Maximum of 35 characters","Federal Employer Identification Number of the Purchaser for this transaction.\nDo not enter dashes or spaces. If FEIN begins with zero(s) enter a single quote first.\nEx: '012345678","Use format \nMM/DD/YYYY","Bill of Lading /\nManifest Number","Enter whole gallons only. Do not enter commas or decimal points.","Enter whole gallons only. Do not enter commas or decimal points.","Enter whole gallons only. Do not enter commas or decimal points."]

{"sheet":"SUsch5D","index":7,"n_rows":8,"n_cols":18,"rows_kept":8,"cut":false,"hidden":true,"merged":[]}
["Supplier / Permissive Supplier Schedule of Disbursements"]
["Schedule 5D - Tax collected sales to Licensed Distributors and Licensed Importers"]
[]
[null,null,"Product","Product","Carrier","Carrier","Transportation","Point of","Point of","Purchaser","Purchaser","Date","Bill of Lading /","Gross","Net","Invoiced"]
[null,null,"Type","Name","Name","FEIN","Mode","Origin","Destination","Name","FEIN","Loaded","Document Number","Gallons","Gallons","Gallons"]
[null,null,"Use FTA Product Codes. \n\nFor a List of Codes,  Click This Button.","Maximum of 35 characters","Maximum of 35 characters","Federal Employer Identification Number of the carrier for this transaction.\nDo not enter dashes or spaces. If FEIN begins with zero(s) enter a single quote first.\nEx: '012345678","B             Barge\nBA  Book Adj.\nJ              Truck\nPL       Pipeline\nR            Rail\nRT     Removed\n       from Terminal\nS     Ship\nST  Stationary Transfer","Enter either TCN or City and State\nMaximum of 35 characters","Enter either TCN or City and State\nMaximum of 35 characters","Maximum of 35 characters","Federal Employer Identification Number of the Purchaser for this transaction.\nDo not enter dashes or spaces. If FEIN begins with zero(s) enter a single quote first.\nEx: '012345678","Use format \nMM/DD/YYYY","Bill of Lading /\nManifest Number","Enter whole gallons only. Do not enter commas or decimal points.","Enter whole gallons only. Do not enter commas or decimal points.","Enter whole gallons only. Do not enter commas or decimal points."]
[]
[null,null,null,null,null,null,null,null,null,null,null,null,null,null,null,null,null,""]

{"sheet":"SUsch5E","index":8,"n_rows":8,"n_cols":18,"rows_kept":8,"cut":false,"hidden":true,"merged":[]}
["Supplier / Permissive Supplier Schedule of Disbursements"]
["Schedule 5E - Tax collected sales to Licensed Suppliers    Use this schedule for \"Direct Shipments\""]
[]
[null,null,"Product","Product","Carrier","Carrier","Transportation","Point of","Point of","Purchaser","Purchaser","Date","Bill of Lading /","Gross","Net","Invoiced"]
[null,null,"Type","Name","Name","FEIN","Mode","Origin","Destination","Name","FEIN","Received","Document Number","Gallons","Gallons","Gallons"]
[null,null,"Use FTA Product Codes. \n\nFor a List of Codes,  Click This Button.","Maximum of 35 characters","Maximum of 35 characters","Federal Employer Identification Number of the carrier for this transaction.\nDo not enter dashes or spaces. If FEIN begins with zero(s) enter a single quote first.\nEx: '012345678","B             Barge\nBA  Book Adj.\nJ              Truck\nPL       Pipeline\nR            Rail\nRT     Removed\n       from Terminal\nS     Ship\nST  Stationary Transfer","Enter either TCN or City and State\nMaximum of 35 characters","Enter either TCN or City and State\nMaximum of 35 characters","Maximum of 35 characters","Federal Employer Identification Number of the Purchaser for this transaction.\nDo not enter dashes or spaces. If FEIN begins with zero(s) enter a single quote first.\nEx: '012345678","Use format \nMM/DD/YYYY","Bill of Lading /\nManifest Number","Enter whole gallons only. Do not enter commas or decimal points.","Enter whole gallons only. Do not enter commas or decimal points.","Enter whole gallons only. Do not enter commas or decimal points."]
[]
[null,null,null,null,null,null,null,null,null,null,null,null,null,null,null,null,null,""]

{"sheet":"SUsch5G","index":9,"n_rows":8,"n_cols":18,"rows_kept":8,"cut":false,"hidden":true,"merged":[]}
["Supplier / Permissive Supplier Schedule of Disbursements"]
["Schedule 5G - Exempt motor fuel sold for taxable purpose to Licensed Distributors and Licensed Importers"]
[]
[null,null,"Product","Product","Carrier","Carrier","Transportation","Point of","Point of","Purchaser","Purchaser","Date","Bill of Lading /","Gross","Net","Invoiced"]
[null,null,"Type","Name","Name","FEIN","Mode","Origin","Destination","Name","FEIN","Received","Document Number","Gallons","Gallons","Gallons"]
[null,null,"Use FTA Product Codes. \n\nFor a List of Codes,  Click This Button.","Maximum of 35 characters","Maximum of 35 characters","Federal Employer Identification Number of the carrier for this transaction.\nDo not enter dashes or spaces. If FEIN begins with zero(s) enter a single quote first.\nEx: '012345678","B             Barge\nBA  Book Adj.\nJ              Truck\nPL       Pipeline\nR            Rail\nRT     Removed\n       from Terminal\nS     Ship\nST  Stationary Transfer","Enter either TCN or City and State\nMaximum of 35 characters","Enter either TCN or City and State\nMaximum of 35 characters","Maximum of 35 characters","Federal Employer Identification Number of the Purchaser for this transaction.\nDo not enter dashes or spaces. If FEIN begins with zero(s) enter a single quote first.\nEx: '012345678","Use format \nMM/DD/YYYY","Bill of Lading /\nManifest Number","Enter whole gallons only. Do not enter commas or decimal points.","Enter whole gallons only. Do not enter commas or decimal points.","Enter whole gallons only. Do not enter commas or decimal points."]
[]
[null,null,null,null,null,null,null,null,null,null,null,null,null,null,null,null,null,""]

{"sheet":"SUsch5H","index":10,"n_rows":8,"n_cols":18,"rows_kept":8,"cut":false,"hidden":true,"merged":[]}
["Supplier / Permissive Supplier Schedule of Disbursements"]
["Schedule 5H - Exempt motor fuel sold for taxable purpose to Unlicensed Distributors and Licensed Suppliers"]
[]
[null,null,"Product","Product","Carrier","Carrier","Transportation","Point of","Point of","Purchaser","Purchaser","Date","Bill of Lading /","Gross","Net","Invoiced"]
[null,null,"Type","Name","Name","FEIN","Mode","Origin","Destination","Name","FEIN","Received","Document Number","Gallons","Gallons","Gallons"]
[null,null,"Use FTA Product Codes. \n\nFor a List of Codes,  Click This Button.","Maximum of 35 characters","Maximum of 35 characters","Federal Employer Identification Number of the carrier for this transaction.\nDo not enter dashes or spaces. If FEIN begins with zero(s) enter a single quote first.\nEx: '012345678","B             Barge\nBA  Book Adj.\nJ              Truck\nPL       Pipeline\nR            Rail\nRT     Removed\n       from Terminal\nS     Ship\nST  Stationary Transfer","Enter either TCN or City and State\nMaximum of 35 characters","Enter either TCN or City and State\nMaximum of 35 characters","Maximum of 35 characters","Federal Employer Identification Number of the Purchaser for this transaction.\nDo not enter dashes or spaces. If FEIN begins with zero(s) enter a single quote first.\nEx: '012345678","Use format \nMM/DD/YYYY","Bill of Lading /\nManifest Number","Enter whole gallons only. Do not enter commas or decimal points.","Enter whole gallons only. Do not enter commas or decimal points.","Enter whole gallons only. Do not enter commas or decimal points."]
[]
[null,null,null,null,null,null,null,null,null,null,null,null,null,null,null,null,null,""]

{"sheet":"SUsch7A","index":11,"n_rows":8,"n_cols":18,"rows_kept":8,"cut":false,"hidden":true,"merged":[[1,0,1,5]]}
["Supplier / Permissive Supplier Schedule of Disbursements"]
["Schedule 7A - Exported sales - Destination state Tax Collected"]
[]
[null,null,"Product","Product","Carrier","Carrier","Transportation","Point of","Point of","Purchaser","Purchaser","Date","Bill of Lading /","Gross","Net","Invoiced"]
[null,null,"Type","Name","Name","FEIN","Mode","Origin","Destination","Name","FEIN","Received","Document Number","Gallons","Gallons","Gallons"]
[null,null,"Use FTA Product Codes. \n\nFor a List of Codes,  Click This Button.","Maximum of 35 characters","Maximum of 35 characters","Federal Employer Identification Number of the carrier for this transaction.\nDo not enter dashes or spaces. If FEIN begins with zero(s) enter a single quote first.\nEx: '012345678","B             Barge\nBA  Book Adj.\nJ              Truck\nPL       Pipeline\nR            Rail\nRT     Removed\n       from Terminal\nS     Ship\nST  Stationary Transfer","Enter either TCN or City and State\nMaximum of 35 characters","Enter either TCN or City and State\nMaximum of 35 characters","Maximum of 35 characters","Federal Employer Identification Number of the Purchaser for this transaction.\nDo not enter dashes or spaces. If FEIN begins with zero(s) enter a single quote first.\nEx: '012345678","Use format \nMM/DD/YYYY","Bill of Lading /\nManifest Number","Enter whole gallons only. Do not enter commas or decimal points.","Enter whole gallons only. Do not enter commas or decimal points.","Enter whole gallons only. Do not enter commas or decimal points."]
[]
[null,null,null,null,null,null,null,null,null,null,null,null,null,null,null,null,null,""]

{"sheet":"SUsch7B","index":12,"n_rows":8,"n_cols":18,"rows_kept":8,"cut":false,"hidden":true,"merged":[[1,0,1,5]]}
["Supplier / Permissive Supplier Schedule of Disbursements"]
["Schedule 7B - Exported sales - West Virginia Tax Collected"]
[]
[null,null,"Product","Product","Carrier","Carrier","Transportation","Point of","Point of","Purchaser","Purchaser","Date","Bill of Lading /","Gross","Net","Invoiced"]
[null,null,"Type","Name","Name","FEIN","Mode","Origin","Destination","Name","FEIN","Received","Document Number","Gallons","Gallons","Gallons"]
[null,null,"Use FTA Product Codes. \n\nFor a List of Codes,  Click This Button.","Maximum of 35 characters","Maximum of 35 characters","Federal Employer Identification Number of the carrier for this transaction.\nDo not enter dashes or spaces. If FEIN begins with zero(s) enter a single quote first.\nEx: '012345678","B             Barge\nBA  Book Adj.\nJ              Truck\nPL       Pipeline\nR            Rail\nRT     Removed\n       from Terminal\nS     Ship\nST  Stationary Transfer","Enter either TCN or City and State\nMaximum of 35 characters","Enter either TCN or City and State\nMaximum of 35 characters","Maximum of 35 characters","Federal Employer Identification Number of the Purchaser for this transaction.\nDo not enter dashes or spaces. If FEIN begins with zero(s) enter a single quote first.\nEx: '012345678","Use format \nMM/DD/YYYY","Bill of Lading /\nManifest Number","Enter whole gallons only. Do not enter commas or decimal points.","Enter whole gallons only. Do not enter commas or decimal points.","Enter whole gallons only. Do not enter commas or decimal points."]
[]
[null,null,null,null,null,null,null,null,null,null,null,null,null,null,null,null,null,""]

{"sheet":"SUsch7C","index":13,"n_rows":8,"n_cols":18,"rows_kept":8,"cut":false,"hidden":true,"merged":[[1,0,1,5]]}
["Supplier / Permissive Supplier Schedule of Disbursements"]
["Schedule 7C - Exported Sales: Destination State Tax Not Collected"]
[]
[null,null,"Product","Product","Transporter","Carrier","Transportation","Point of","Point of","Purchaser","Purchaser","Date","Bill of Lading /","Gross","Net","Invoiced"]
[null,null,"Type","Name","Name","FEIN","Mode","Origin","Destination","Name","FEIN","Received","Document Number","Gallons","Gallons","Gallons"]
[null,null,"Use FTA Product Codes. \n\nFor a List of Codes,  Click This Button.","Maximum of 35 characters","Maximum of 35 characters","Federal Employer Identification Number of the carrier for this transaction.\nDo not enter dashes or spaces. If FEIN begins with zero(s) enter a single quote first.\nEx: '012345678","B             Barge\nBA  Book Adj.\nJ              Truck\nPL       Pipeline\nR            Rail\nRT     Removed\n       from Terminal\nS     Ship\nST  Stationary Transfer","Enter either TCN or City and State\nMaximum of 35 characters","Enter either TCN or City and State\nMaximum of 35 characters","Maximum of 35 characters","Federal Employer Identification Number of the Purchaser for this transaction.\nDo not enter dashes or spaces. If FEIN begins with zero(s) enter a single quote first.\nEx: '012345678","Use format \nMM/DD/YYYY","Bill of Lading /\nManifest Number","Enter whole gallons only. Do not enter commas or decimal points.","Enter whole gallons only. Do not enter commas or decimal points.","Enter whole gallons only. Do not enter commas or decimal points."]
[]
[null,null,null,null,null,null,null,null,null,null,null,null,null,null,null,null,null,""]

{"sheet":"Importer","index":14,"n_rows":37,"n_cols":31,"rows_kept":37,"cut":false,"hidden":true,"merged":[[27,3,27,4],[28,3,28,4]]}
["Importer"]
[null,null,null,null,null,null,null,null,null,null,null,null,null,null,null,null,null,null,null,null,null,null,null,null,null,null,0.152,0.20499999999999999,2021,3.5000000000000003E-2,2.8000000000000001E-2]
[null,"Please complete schedules First.\nDo not change Gallon amounts on this sheet"]
[]
[null,null,null,null,"Undyed","Dyed Diesel /",null,"Aviation",{"$f":"IF(AC2>2013,\"Compressed\",\"Aviation\")","v":"Compressed"},{"$f":"IF(AC2>2013,\"LNG\",\"Clear Kerosene \")","v":"LNG"}]
["Line",null,"Gasoline ","Gasohol",{"$f":"IF(AC2>2013,\"Diesel / Kerosene\",\"Diesel\")","v":"Diesel / Kerosene"},"Dyed Kerosene","Propane",{"$f":"IF(AC2>2013,\"Fuels\",\"Gasoline\")","v":"Fuels"},{"$f":"IF(AC2>2013,\"Natural Gas\",\"Jet Fuel\")","v":"Natural Gas"},"/  Other"]
[null,"Tax Due Calculation"]
["1","TAX UNPAID RECEIPTS\nGo to Schedule…      Get Totals…"]
["2","DIVERSION INTO WV (+)\nGo to Schedule…      Get Totals…"]
["3","NET TAXABLE GALLONS",{"$f":"C8+C9","v":0},{"$f":"D8+D9","v":0},0,0,0,0,0,0]
["4","TAX RATE",{"$f":"$AA$2+$AB$2","v":0.35699999999999998},{"$f":"$AA$2+$AB$2","v":0.35699999999999998},{"$f":"$AA$2+$AB$2","v":0.35699999999999998},{"$f":"$AA$2","v":0.152},{"$f":"IF($AC$2>2013,$AD$2,$AA$2)","v":3.5000000000000003E-2},{"$f":"$AA$2","v":0.152},{"$f":"IF($AC$2>2013,ROUND($AE$2,3)+$AB$2,$AA$2)","v":0.23299999999999998},{"$f":"IF($AC$2>2013,ROUND($AE$2/1.554,3)+ROUND($AB$2/1.554,3),$AA$2+$AB$2)","v":0.15}]
["5","TAX DUE",{"$f":"ROUND(C10*C11,2)","v":0},0,0,0,0,0,0,0]
["6","EXEMPT FUEL (GALLONS)\nGo to Schedule…      Get Totals…"]
["7",{"$f":"CONCATENATE(\"FLAT RATE TAX DUE  (Line 6 x \",$AB$2,\")\")","v":"FLAT RATE TAX DUE  (Line 6 x 0.205)"},null,null,null,null,{"$f":"IF($AC$2>2013,ROUND(G13*ROUND($AB$2/1.367,3),2),ROUND(G13*$AB$2,2))","v":0},{"$f":"IF('Select Return to Export'!G5>DATE(2017,6,30),0,ROUND(H13*$AB$2,2))","v":0},{"$f":"IF($AC$2>=2014,0,ROUND(I13*$AB$2,2))","v":0}]
["8","TOTAL TAX DUE",{"$f":"C12+C14","v":0},0,0,0,0,0,0,0]
[null,"Credit Calculation"]
["1","DIVERSION FROM WV (-)\nGo to Schedule…      Get Totals…"]
["2","COMBINED TAX RATE",{"$f":"$AA$2+$AB$2","v":0.35699999999999998},{"$f":"$AA$2+$AB$2","v":0.35699999999999998},{"$f":"$AA$2+$AB$2","v":0.35699999999999998},{"$f":"$AA$2","v":0.152},{"$f":"IF($AC$2>2013,$AD$2,$AA$2)","v":3.5000000000000003E-2},{"$f":"$AA$2","v":0.152},{"$f":"IF($AC$2>2013,ROUND($AE$2,3)+$AB$2,$AA$2)","v":0.23299999999999998},{"$f":"IF($AC$2>2013,ROUND(($AE$2+$AB$2)/1.554,3),$AA$2+$AB$2)","v":0.15}]
["3","Credit Due",{"$f":"ROUND(C17*C18,2)","v":0},0,0,0,0,0,0,0]
["4","Total Credit Due",{"$f":"ROUND(SUM(C19:J19),2)","v":0}]
[null,"Tax / Credit Calculation"]
["1","Total Tax Due",{"$f":"ROUND(SUM(C15:J15),2)","v":0}]
["2","Total Credit Due",{"$f":"C20","v":0}]
["3","GRAND TOTAL TAX DUE",{"$f":"MAX(C22-C23,0)","v":0}]
["4","Administrative Discount       Only if timely filed.                \n(Line 1 multiplied by 0.001)  Maximum $5,000 "]
["5","Gross Amount Due",{"$f":"C24-C25","v":0}]
["6","Credit Due from this Return",{"$f":"MAX(C20-C22,0)","v":0}]
["7","Previous Month Credit",null,"Period Ending\nMMDDYYYY"]
["8","Exporter Return Credit",null,"Period Ending\nMMDDYYYY"]
["9","Total Credits",{"$f":"C27+C28+C29","v":0}]
["10","Net Amount Tax Due",{"$f":"MAX(0,C26-C30)","v":0}]
["11","NON-WAIVABLE INTEREST"]
["12","ADDITIONS TO TAX"]
["13","TOTAL TAX AND LATE FILING CHARGES",{"$f":"C31+C32+C33","v":0}]
["14","Overpayment Amount",{"$f":"MAX(0,C30-C26-C32-C33)","v":0}]
["15","TOTAL REFUND \n(For a refund, enter total from Line 14)"]
["16","CREDIT DUE \n(For credit, enter total from Line 14)"]

{"sheet":"IMsch1A","index":15,"n_rows":607,"n_cols":18,"rows_kept":607,"cut":false,"hidden":true,"merged":[[1,0,1,4]]}
["Importer Schedule of Tax-Paid Receipts"]
["Schedule 1A"]
[]
[null,null,"Product","Product","Transporter","Transporter","Transportation","Point of","Point of","Supplier","Seller","Seller","Date","Bill of Lading /","Gross","Net","Invoiced"]
[null,null,"Type","Name","Name","FEIN","Mode","Origin","Destination","Name","Name","FEIN","Loaded","Document Number","Gallons","Gallons","Gallons"]
[null,null,"Use FTA Product Codes. \n\nFor a List of Codes,  Click This Button.","Maximum of 35 characters","Maximum of 35 characters","Federal Employer Identification Number of the Transporter for this transaction.\nDo not enter dashes or spaces. If FEIN begins with zero(s) enter a single quote first.\nEx: '012345678","B             Barge\nBA  Book Adj.\nJ              Truck\nPL       Pipeline\nR            Rail\nRT     Removed\n       from Terminal\nS     Ship\nST  Stationary Transfer","Enter either TCN or City and State\nMaximum of 35 characters","Enter either TCN or City and State\nMaximum of 35 characters","Maximum of 35 characters","Maximum of 35 characters","Federal Employer Identification Number of the Seller for this transaction.\nDo not enter dashes or spaces. If FEIN begins with zero(s) enter a single quote first.\nEx: '012345678","Use format \nMM/DD/YYYY","Bill of Lading /\nManifest Number","Enter whole gallons only. Do not enter commas or decimal points.","Enter whole gallons only. Do not enter commas or decimal points.","Enter whole gallons only. Do not enter commas or decimal points."]
[]
[null,null,null,null,null,null,null,null,null,null,null,null,null,null,null,null,null,""]
[null,null,null,null,null,null,null,null,null,null,null,null,null,null,null,null,null,""]
[null,null,null,null,null,null,null,null,null,null,null,null,null,null,null,null,null,""]
[null,null,null,null,null,null,null,null,null,null,null,null,null,null,null,null,null,""]
[null,null,null,null,null,null,null,null,null,null,null,null,null,null,null,null,null,""]
[null,null,null,null,null,null,null,null,null,null,null,null,null,null,null,null,null,""]
[null,null,null,null,null,null,null,null,null,null,null,null,null,null,null,null,null,""]
[null,null,null,null,null,null,null,null,null,null,null,null,null,null,null,null,null,""]
[null,null,null,null,null,null,null,null,null,null,null,null,null,null,null,null,null,""]
[null,null,null,null,null,null,null,null,null,null,null,null,null,null,null,null,null,""]
[null,null,null,null,null,null,null,null,null,null,null,null,null,null,null,null,null,""]
[null,null,null,null,null,null,null,null,null,null,null,null,null,null,null,null,null,""]
[null,null,null,null,null,null,null,null,null,null,null,null,null,null,null,null,null,""]
[null,null,null,null,null,null,null,null,null,null,null,null,null,null,null,null,null,""]
[null,null,null,null,null,null,null,null,null,null,null,null,null,null,null,null,null,""]
[null,null,null,null,null,null,null,null,null,null,null,null,null,null,null,null,null,""]
[null,null,null,null,null,null,null,null,null,null,null,null,null,null,null,null,null,""]
[null,null,null,null,null,null,null,null,null,null,null,null,null,null,null,null,null,""]
[null,null,null,null,null,null,null,null,null,null,null,null,null,null,null,null,null,""]
[null,null,null,null,null,null,null,null,null,null,null,null,null,null,null,null,null,""]
[null,null,null,null,null,null,null,null,null,null,null,null,null,null,null,null,null,""]
[null,null,null,null,null,null,null,null,null,null,null,null,null,null,null,null,null,""]
[null,null,null,null,null,null,null,null,null,null,null,null,null,null,null,null,null,""]
[null,null,null,null,null,null,null,null,null,null,null,null,null,null,null,null,null,""]
[null,null,null,null,null,null,null,null,null,null,null,null,null,null,null,null,null,""]
[null,null,null,null,null,null,null,null,null,null,null,null,null,null,null,null,null,""]
[null,null,null,null,null,null,null,null,null,null,null,null,null,null,null,null,null,""]
[null,null,null,null,null,null,null,null,null,null,null,null,null,null,null,null,null,""]
[null,null,null,null,null,null,null,null,null,null,null,null,null,null,null,null,null,""]
[null,null,null,null,null,null,null,null,null,null,null,null,null,null,null,null,null,""]
[null,null,null,null,null,null,null,null,null,null,null,null,null,null,null,null,null,""]
[null,null,null,null,null,null,null,null,null,null,null,null,null,null,null,null,null,""]
[null,null,null,null,null,null,null,null,null,null,null,null,null,null,null,null,null,""]
[null,null,null,null,null,null,null,null,null,null,null,null,null,null,null,null,null,""]
[null,null,null,null,null,null,null,null,null,null,null,null,null,null,null,null,null,""]
[null,null,null,null,null,null,null,null,null,null,null,null,null,null,null,null,null,""]
[null,null,null,null,null,null,null,null,null,null,null,null,null,null,null,null,null,""]
[null,null,null,null,null,null,null,null,null,null,null,null,null,null,null,null,null,""]
[null,null,null,null,null,null,null,null,null,null,null,null,null,null,null,null,null,""]
[null,null,null,null,null,null,null,null,null,null,null,null,null,null,null,null,null,""]
[null,null,null,null,null,null,null,null,null,null,null,null,null,null,null,null,null,""]
[null,null,null,null,null,null,null,null,null,null,null,null,null,null,null,null,null,""]
[null,null,null,null,null,null,null,null,null,null,null,null,null,null,null,null,null,""]
[null,null,null,null,null,null,null,null,null,null,null,null,null,null,null,null,null,""]
[null,null,null,null,null,null,null,null,null,null,null,null,null,null,null,null,null,""]
[null,null,null,null,null,null,null,null,null,null,null,null,null,null,null,null,null,""]
[null,null,null,null,null,null,null,null,null,null,null,null,null,null,null,null,null,""]
[null,null,null,null,null,null,null,null,null,null,null,null,null,null,null,null,null,""]
[null,null,null,null,null,null,null,null,null,null,null,null,null,null,null,null,null,""]
[null,null,null,null,null,null,null,null,null,null,null,null,null,null,null,null,null,""]
[null,null,null,null,null,null,null,null,null,null,null,null,null,null,null,null,null,""]
[null,null,null,null,null,null,null,null,null,null,null,null,null,null,null,null,null,""]
[null,null,null,null,null,null,null,null,null,null,null,null,null,null,null,null,null,""]
[null,null,null,null,null,null,null,null,null,null,null,null,null,null,null,null,null,""]
[null,null,null,null,null,null,null,null,null,null,null,null,null,null,null,null,null,""]
[null,null,null,null,null,null,null,null,null,null,null,null,null,null,null,null,null,""]
[null,null,null,null,null,null,null,null,null,null,null,null,null,null,null,null,null,""]
[null,null,null,null,null,null,null,null,null,null,null,null,null,null,null,null,null,""]
[null,null,null,null,null,null,null,null,null,null,null,null,null,null,null,null,null,""]
[null,null,null,null,null,null,null,null,null,null,null,null,null,null,null,null,null,""]
[null,null,null,null,null,null,null,null,null,null,null,null,null,null,null,null,null,""]
[null,null,null,null,null,null,null,null,null,null,null,null,null,null,null,null,null,""]
[null,null,null,null,null,null,null,null,null,null,null,null,null,null,null,null,null,""]
[null,null,null,null,null,null,null,null,null,null,null,null,null,null,null,null,null,""]
[null,null,null,null,null,null,null,null,null,null,null,null,null,null,null,null,null,""]
[null,null,null,null,null,null,null,null,null,null,null,null,null,null,null,null,null,""]
[null,null,null,null,null,null,null,null,null,null,null,null,null,null,null,null,null,""]
[null,null,null,null,null,null,null,null,null,null,null,null,null,null,null,null,null,""]
[null,null,null,null,null,null,null,null,null,null,null,null,null,null,null,null,null,""]
[null,null,null,null,null,null,null,null,null,null,null,null,null,null,null,null,null,""]
[null,null,null,null,null,null,null,null,null,null,null,null,null,null,null,null,null,""]
[null,null,null,null,null,null,null,null,null,null,null,null,null,null,null,null,null,""]
[null,null,null,null,null,null,null,null,null,null,null,null,null,null,null,null,null,""]
[null,null,null,null,null,null,null,null,null,null,null,null,null,null,null,null,null,""]
[null,null,null,null,null,null,null,null,null,null,null,null,null,null,null,null,null,""]
[null,null,null,null,null,null,null,null,null,null,null,null,null,null,null,null,null,""]
[null,null,null,null,null,null,null,null,null,null,null,null,null,null,null,null,null,""]
[null,null,null,null,null,null,null,null,null,null,null,null,null,null,null,null,null,""]
[null,null,null,null,null,null,null,null,null,null,null,null,null,null,null,null,null,""]
[null,null,null,null,null,null,null,null,null,null,null,null,null,null,null,null,null,""]
[null,null,null,null,null,null,null,null,null,null,null,null,null,null,null,null,null,""]
[null,null,null,null,null,null,null,null,null,null,null,null,null,null,null,null,null,""]
[null,null,null,null,null,null,null,null,null,null,null,null,null,null,null,null,null,""]
[null,null,null,null,null,null,null,null,null,null,null,null,null,null,null,null,null,""]
[null,null,null,null,null,null,null,null,null,null,null,null,null,null,null,null,null,""]
[null,null,null,null,null,null,null,null,null,null,null,null,null,null,null,null,null,""]
[null,null,null,null,null,null,null,null,null,null,null,null,null,null,null,null,null,""]
[null,null,null,null,null,null,null,null,null,null,null,null,null,null,null,null,null,""]
[null,null,null,null,null,null,null,null,null,null,null,null,null,null,null,null,null,""]
[null,null,null,null,null,null,null,null,null,null,null,null,null,null,null,null,null,""]
[null,null,null,null,null,null,null,null,null,null,null,null,null,null,null,null,null,""]
[null,null,null,null,null,null,null,null,null,null,null,null,null,null,null,null,null,""]
[null,null,null,null,null,null,null,null,null,null,null,null,null,null,null,null,null,""]
[null,null,null,null,null,null,null,null,null,null,null,null,null,null,null,null,null,""]
[null,null,null,null,null,null,null,null,null,null,null,null,null,null,null,null,null,""]
[null,null,null,null,null,null,null,null,null,null,null,null,null,null,null,null,null,""]
[null,null,null,null,null,null,null,null,null,null,null,null,null,null,null,null,null,""]
[null,null,null,null,null,null,null,null,null,null,null,null,null,null,null,null,null,""]
[null,null,null,null,null,null,null,null,null,null,null,null,null,null,null,null,null,""]
[null,null,null,null,null,null,null,null,null,null,null,null,null,null,null,null,null,""]
[null,null,null,null,null,null,null,null,null,null,null,null,null,null,null,null,null,""]
[null,null,null,null,null,null,null,null,null,null,null,null,null,null,null,null,null,""]
[null,null,null,null,null,null,null,null,null,null,null,null,null,null,null,null,null,""]
[null,null,null,null,null,null,null,null,null,null,null,null,null,null,null,null,null,""]
[null,null,null,null,null,null,null,null,null,null,null,null,null,null,null,null,null,""]
[null,null,null,null,null,null,null,null,null,null,null,null,null,null,null,null,null,""]
[null,null,null,null,null,null,null,null,null,null,null,null,null,null,null,null,null,""]
[null,null,null,null,null,null,null,null,null,null,null,null,null,null,null,null,null,""]
[null,null,null,null,null,null,null,null,null,null,null,null,null,null,null,null,null,""]
[null,null,null,null,null,null,null,null,null,null,null,null,null,null,null,null,null,""]
[null,null,null,null,null,null,null,null,null,null,null,null,null,null,null,null,null,""]
[null,null,null,null,null,null,null,null,null,null,null,null,null,null,null,null,null,""]
[null,null,null,null,null,null,null,null,null,null,null,null,null,null,null,null,null,""]
[null,null,null,null,null,null,null,null,null,null,null,null,null,null,null,null,null,""]
[null,null,null,null,null,null,null,null,null,null,null,null,null,null,null,null,null,""]
[null,null,null,null,null,null,null,null,null,null,null,null,null,null,null,null,null,""]
[null,null,null,null,null,null,null,null,null,null,null,null,null,null,null,null,null,""]
[null,null,null,null,null,null,null,null,null,null,null,null,null,null,null,null,null,""]
[null,null,null,null,null,null,null,null,null,null,null,null,null,null,null,null,null,""]
[null,null,null,null,null,null,null,null,null,null,null,null,null,null,null,null,null,""]
[null,null,null,null,null,null,null,null,null,null,null,null,null,null,null,null,null,""]
[null,null,null,null,null,null,null,null,null,null,null,null,null,null,null,null,null,""]
[null,null,null,null,null,null,null,null,null,null,null,null,null,null,null,null,null,""]
[null,null,null,null,null,null,null,null,null,null,null,null,null,null,null,null,null,""]
[null,null,null,null,null,null,null,null,null,null,null,null,null,null,null,null,null,""]
[null,null,null,null,null,null,null,null,null,null,null,null,null,null,null,null,null,""]
[null,null,null,null,null,null,null,null,null,null,null,null,null,null,null,null,null,""]
[null,null,null,null,null,null,null,null,null,null,null,null,null,null,null,null,null,""]
[null,null,null,null,null,null,null,null,null,null,null,null,null,null,null,null,null,""]
[null,null,null,null,null,null,null,null,null,null,null,null,null,null,null,null,null,""]
[null,null,null,null,null,null,null,null,null,null,null,null,null,null,null,null,null,""]
[null,null,null,null,null,null,null,null,null,null,null,null,null,null,null,null,null,""]
[null,null,null,null,null,null,null,null,null,null,null,null,null,null,null,null,null,""]
[null,null,null,null,null,null,null,null,null,null,null,null,null,null,null,null,null,""]
[null,null,null,null,null,null,null,null,null,null,null,null,null,null,null,null,null,""]
[null,null,null,null,null,null,null,null,null,null,null,null,null,null,null,null,null,""]
[null,null,null,null,null,null,null,null,null,null,null,null,null,null,null,null,null,""]
[null,null,null,null,null,null,null,null,null,null,null,null,null,null,null,null,null,""]
[null,null,null,null,null,null,null,null,null,null,null,null,null,null,null,null,null,""]
[null,null,null,null,null,null,null,null,null,null,null,null,null,null,null,null,null,""]
[null,null,null,null,null,null,null,null,null,null,null,null,null,null,null,null,null,""]
[null,null,null,null,null,null,null,null,null,null,null,null,null,null,null,null,null,""]
[null,null,null,null,null,null,null,null,null,null,null,null,null,null,null,null,null,""]
[null,null,null,null,null,null,null,null,null,null,null,null,null,null,null,null,null,""]
[null,null,null,null,null,null,null,null,null,null,null,null,null,null,null,null,null,""]
[null,null,null,null,null,null,null,null,null,null,null,null,null,null,null,null,null,""]
[null,null,null,null,null,null,null,null,null,null,null,null,null,null,null,null,null,""]
[null,null,null,null,null,null,null,null,null,null,null,null,null,null,null,null,null,""]
[null,null,null,null,null,null,null,null,null,null,null,null,null,null,null,null,null,""]
[null,null,null,null,null,null,null,null,null,null,null,null,null,null,null,null,null,""]
[null,null,null,null,null,null,null,null,null,null,null,null,null,null,null,null,null,""]
[null,null,null,null,null,null,null,null,null,null,null,null,null,null,null,null,null,""]
[null,null,null,null,null,null,null,null,null,null,null,null,null,null,null,null,null,""]
[null,null,null,null,null,null,null,null,null,null,null,null,null,null,null,null,null,""]
[null,null,null,null,null,null,null,null,null,null,null,null,null,null,null,null,null,""]
[null,null,null,null,null,null,null,null,null,null,null,null,null,null,null,null,null,""]
[null,null,null,null,null,null,null,null,null,null,null,null,null,null,null,null,null,""]
[null,null,null,null,null,null,null,null,null,null,null,null,null,null,null,null,null,""]
[null,null,null,null,null,null,null,null,null,null,null,null,null,null,null,null,null,""]
[null,null,null,null,null,null,null,null,null,null,null,null,null,null,null,null,null,""]
[null,null,null,null,null,null,null,null,null,null,null,null,null,null,null,null,null,""]
[null,null,null,null,null,null,null,null,null,null,null,null,null,null,null,null,null,""]
[null,null,null,null,null,null,null,null,null,null,null,null,null,null,null,null,null,""]
[null,null,null,null,null,null,null,null,null,null,null,null,null,null,null,null,null,""]
[null,null,null,null,null,null,null,null,null,null,null,null,null,null,null,null,null,""]
[null,null,null,null,null,null,null,null,null,null,null,null,null,null,null,null,null,""]
[null,null,null,null,null,null,null,null,null,null,null,null,null,null,null,null,null,""]
[null,null,null,null,null,null,null,null,null,null,null,null,null,null,null,null,null,""]
[null,null,null,null,null,null,null,null,null,null,null,null,null,null,null,null,null,""]
[null,null,null,null,null,null,null,null,null,null,null,null,null,null,null,null,null,""]
[null,null,null,null,null,null,null,null,null,null,null,null,null,null,null,null,null,""]
[null,null,null,null,null,null,null,null,null,null,null,null,null,null,null,null,null,""]
[null,null,null,null,null,null,null,null,null,null,null,null,null,null,null,null,null,""]
[null,null,null,null,null,null,null,null,null,null,null,null,null,null,null,null,null,""]
[null,null,null,null,null,null,null,null,null,null,null,null,null,null,null,null,null,""]
[null,null,null,null,null,null,null,null,null,null,null,null,null,null,null,null,null,""]
[null,null,null,null,null,null,null,null,null,null,null,null,null,null,null,null,null,""]
[null,null,null,null,null,null,null,null,null,null,null,null,null,null,null,null,null,""]
[null,null,null,null,null,null,null,null,null,null,null,null,null,null,null,null,null,""]
[null,null,null,null,null,null,null,null,null,null,null,null,null,null,null,null,null,""]
[null,null,null,null,null,null,null,null,null,null,null,null,null,null,null,null,null,""]
[null,null,null,null,null,null,null,null,null,null,null,null,null,null,null,null,null,""]
[null,null,null,null,null,null,null,null,null,null,null,null,null,null,null,null,null,""]
[null,null,null,null,null,null,null,null,null,null,null,null,null,null,null,null,null,""]
[null,null,null,null,null,null,null,null,null,null,null,null,null,null,null,null,null,""]
[null,null,null,null,null,null,null,null,null,null,null,null,null,null,null,null,null,""]
[null,null,null,null,null,null,null,null,null,null,null,null,null,null,null,null,null,""]
[null,null,null,null,null,null,null,null,null,null,null,null,null,null,null,null,null,""]
[null,null,null,null,null,null,null,null,null,null,null,null,null,null,null,null,null,""]
[null,null,null,null,null,null,null,null,null,null,null,null,null,null,null,null,null,""]
[null,null,null,null,null,null,null,null,null,null,null,null,null,null,null,null,null,""]
[null,null,null,null,null,null,null,null,null,null,null,null,null,null,null,null,null,""]
[null,null,null,null,null,null,null,null,null,null,null,null,null,null,null,null,null,""]
[null,null,null,null,null,null,null,null,null,null,null,null,null,null,null,null,null,""]
[null,null,null,null,null,null,null,null,null,null,null,null,null,null,null,null,null,""]
[null,null,null,null,null,null,null,null,null,null,null,null,null,null,null,null,null,""]
[null,null,null,null,null,null,null,null,null,null,null,null,null,null,null,null,null,""]
[null,null,null,null,null,null,null,null,null,null,null,null,null,null,null,null,null,""]
[null,null,null,null,null,null,null,null,null,null,null,null,null,null,null,null,null,""]
[null,null,null,null,null,null,null,null,null,null,null,null,null,null,null,null,null,""]
[null,null,null,null,null,null,null,null,null,null,null,null,null,null,null,null,null,""]
[null,null,null,null,null,null,null,null,null,null,null,null,null,null,null,null,null,""]
[null,null,null,null,null,null,null,null,null,null,null,null,null,null,null,null,null,""]
[null,null,null,null,null,null,null,null,null,null,null,null,null,null,null,null,null,""]
[null,null,null,null,null,null,null,null,null,null,null,null,null,null,null,null,null,""]
[null,null,null,null,null,null,null,null,null,null,null,null,null,null,null,null,null,""]
[null,null,null,null,null,null,null,null,null,null,null,null,null,null,null,null,null,""]
[null,null,null,null,null,null,null,null,null,null,null,null,null,null,null,null,null,""]
[null,null,null,null,null,null,null,null,null,null,null,null,null,null,null,null,null,""]
[null,null,null,null,null,null,null,null,null,null,null,null,null,null,null,null,null,""]
[null,null,null,null,null,null,null,null,null,null,null,null,null,null,null,null,null,""]
[null,null,null,null,null,null,null,null,null,null,null,null,null,null,null,null,null,""]
[null,null,null,null,null,null,null,null,null,null,null,null,null,null,null,null,null,""]
[null,null,null,null,null,null,null,null,null,null,null,null,null,null,null,null,null,""]
[null,null,null,null,null,null,null,null,null,null,null,null,null,null,null,null,null,""]
[null,null,null,null,null,null,null,null,null,null,null,null,null,null,null,null,null,""]
[null,null,null,null,null,null,null,null,null,null,null,null,null,null,null,null,null,""]
[null,null,null,null,null,null,null,null,null,null,null,null,null,null,null,null,null,""]
[null,null,null,null,null,null,null,null,null,null,null,null,null,null,null,null,null,""]
[null,null,null,null,null,null,null,null,null,null,null,null,null,null,null,null,null,""]
[null,null,null,null,null,null,null,null,null,null,null,null,null,null,null,null,null,""]
[null,null,null,null,null,null,null,null,null,null,null,null,null,null,null,null,null,""]
[null,null,null,null,null,null,null,null,null,null,null,null,null,null,null,null,null,""]
[null,null,null,null,null,null,null,null,null,null,null,null,null,null,null,null,null,""]
[null,null,null,null,null,null,null,null,null,null,null,null,null,null,null,null,null,""]
[null,null,null,null,null,null,null,null,null,null,null,null,null,null,null,null,null,""]
[null,null,null,null,null,null,null,null,null,null,null,null,null,null,null,null,null,""]
[null,null,null,null,null,null,null,null,null,null,null,null,null,null,null,null,null,""]
[null,null,null,null,null,null,null,null,null,null,null,null,null,null,null,null,null,""]
[null,null,null,null,null,null,null,null,null,null,null,null,null,null,null,null,null,""]
[null,null,null,null,null,null,null,null,null,null,null,null,null,null,null,null,null,""]
[null,null,null,null,null,null,null,null,null,null,null,null,null,null,null,null,null,""]
[null,null,null,null,null,null,null,null,null,null,null,null,null,null,null,null,null,""]
[null,null,null,null,null,null,null,null,null,null,null,null,null,null,null,null,null,""]
[null,null,null,null,null,null,null,null,null,null,null,null,null,null,null,null,null,""]
[null,null,null,null,null,null,null,null,null,null,null,null,null,null,null,null,null,""]
[null,null,null,null,null,null,null,null,null,null,null,null,null,null,null,null,null,""]
[null,null,null,null,null,null,null,null,null,null,null,null,null,null,null,null,null,""]
[null,null,null,null,null,null,null,null,null,null,null,null,null,null,null,null,null,""]
[null,null,null,null,null,null,null,null,null,null,null,null,null,null,null,null,null,""]
[null,null,null,null,null,null,null,null,null,null,null,null,null,null,null,null,null,""]
[null,null,null,null,null,null,null,null,null,null,null,null,null,null,null,null,null,""]
[null,null,null,null,null,null,null,null,null,null,null,null,null,null,null,null,null,""]
[null,null,null,null,null,null,null,null,null,null,null,null,null,null,null,null,null,""]
[null,null,null,null,null,null,null,null,null,null,null,null,null,null,null,null,null,""]
[null,null,null,null,null,null,null,null,null,null,null,null,null,null,null,null,null,""]
[null,null,null,null,null,null,null,null,null,null,null,null,null,null,null,null,null,""]
[null,null,null,null,null,null,null,null,null,null,null,null,null,null,null,null,null,""]
[null,null,null,null,null,null,null,null,null,null,null,null,null,null,null,null,null,""]
[null,null,null,null,null,null,null,null,null,null,null,null,null,null,null,null,null,""]
[null,null,null,null,null,null,null,null,null,null,null,null,null,null,null,null,null,""]
[null,null,null,null,null,null,null,null,null,null,null,null,null,null,null,null,null,""]
[null,null,null,null,null,null,null,null,null,null,null,null,null,null,null,null,null,""]
[null,null,null,null,null,null,null,null,null,null,null,null,null,null,null,null,null,""]
[null,null,null,null,null,null,null,null,null,null,null,null,null,null,null,null,null,""]
[null,null,null,null,null,null,null,null,null,null,null,null,null,null,null,null,null,""]
[null,null,null,null,null,null,null,null,null,null,null,null,null,null,null,null,null,""]
[null,null,null,null,null,null,null,null,null,null,null,null,null,null,null,null,null,""]
[null,null,null,null,null,null,null,null,null,null,null,null,null,null,null,null,null,""]
[null,null,null,null,null,null,null,null,null,null,null,null,null,null,null,null,null,""]
[null,null,null,null,null,null,null,null,null,null,null,null,null,null,null,null,null,""]
[null,null,null,null,null,null,null,null,null,null,null,null,null,null,null,null,null,""]
[null,null,null,null,null,null,null,null,null,null,null,null,null,null,null,null,null,""]
[null,null,null,null,null,null,null,null,null,null,null,null,null,null,null,null,null,""]
[null,null,null,null,null,null,null,null,null,null,null,null,null,null,null,null,null,""]
[null,null,null,null,null,null,null,null,null,null,null,null,null,null,null,null,null,""]
[null,null,null,null,null,null,null,null,null,null,null,null,null,null,null,null,null,""]
[null,null,null,null,null,null,null,null,null,null,null,null,null,null,null,null,null,""]
[null,null,null,null,null,null,null,null,null,null,null,null,null,null,null,null,null,""]
[null,null,null,null,null,null,null,null,null,null,null,null,null,null,null,null,null,""]
[null,null,null,null,null,null,null,null,null,null,null,null,null,null,null,null,null,""]
[null,null,null,null,null,null,null,null,null,null,null,null,null,null,null,null,null,""]
[null,null,null,null,null,null,null,null,null,null,null,null,null,null,null,null,null,""]
[null,null,null,null,null,null,null,null,null,null,null,null,null,null,null,null,null,""]
[null,null,null,null,null,null,null,null,null,null,null,null,null,null,null,null,null,""]
[null,null,null,null,null,null,null,null,null,null,null,null,null,null,null,null,null,""]
[null,null,null,null,null,null,null,null,null,null,null,null,null,null,null,null,null,""]
[null,null,null,null,null,null,null,null,null,null,null,null,null,null,null,null,null,""]
[null,null,null,null,null,null,null,null,null,null,null,null,null,null,null,null,null,""]
[null,null,null,null,null,null,null,null,null,null,null,null,null,null,null,null,null,""]
[null,null,null,null,null,null,null,null,null,null,null,null,null,null,null,null,null,""]
[null,null,null,null,null,null,null,null,null,null,null,null,null,null,null,null,null,""]
[null,null,null,null,null,null,null,null,null,null,null,null,null,null,null,null,null,""]
[null,null,null,null,null,null,null,null,null,null,null,null,null,null,null,null,null,""]
[null,null,null,null,null,null,null,null,null,null,null,null,null,null,null,null,null,""]
[null,null,null,null,null,null,null,null,null,null,null,null,null,null,null,null,null,""]
[null,null,null,null,null,null,null,null,null,null,null,null,null,null,null,null,null,""]
[null,null,null,null,null,null,null,null,null,null,null,null,null,null,null,null,null,""]
[null,null,null,null,null,null,null,null,null,null,null,null,null,null,null,null,null,""]
[null,null,null,null,null,null,null,null,null,null,null,null,null,null,null,null,null,""]
[null,null,null,null,null,null,null,null,null,null,null,null,null,null,null,null,null,""]
[null,null,null,null,null,null,null,null,null,null,null,null,null,null,null,null,null,""]
[null,null,null,null,null,null,null,null,null,null,null,null,null,null,null,null,null,""]
[null,null,null,null,null,null,null,null,null,null,null,null,null,null,null,null,null,""]
[null,null,null,null,null,null,null,null,null,null,null,null,null,null,null,null,null,""]
[null,null,null,null,null,null,null,null,null,null,null,null,null,null,null,null,null,""]
[null,null,null,null,null,null,null,null,null,null,null,null,null,null,null,null,null,""]
[null,null,null,null,null,null,null,null,null,null,null,null,null,null,null,null,null,""]
[null,null,null,null,null,null,null,null,null,null,null,null,null,null,null,null,null,""]
[null,null,null,null,null,null,null,null,null,null,null,null,null,null,null,null,null,""]
[null,null,null,null,null,null,null,null,null,null,null,null,null,null,null,null,null,""]
[null,null,null,null,null,null,null,null,null,null,null,null,null,null,null,null,null,""]
[null,null,null,null,null,null,null,null,null,null,null,null,null,null,null,null,null,""]
[null,null,null,null,null,null,null,null,null,null,null,null,null,null,null,null,null,""]
[null,null,null,null,null,null,null,null,null,null,null,null,null,null,null,null,null,""]
[null,null,null,null,null,null,null,null,null,null,null,null,null,null,null,null,null,""]
[null,null,null,null,null,null,null,null,null,null,null,null,null,null,null,null,null,""]
[null,null,null,null,null,null,null,null,null,null,null,null,null,null,null,null,null,""]
[null,null,null,null,null,null,null,null,null,null,null,null,null,null,null,null,null,""]
[null,null,null,null,null,null,null,null,null,null,null,null,null,null,null,null,null,""]
[null,null,null,null,null,null,null,null,null,null,null,null,null,null,null,null,null,""]
[null,null,null,null,null,null,null,null,null,null,null,null,null,null,null,null,null,""]
[null,null,null,null,null,null,null,null,null,null,null,null,null,null,null,null,null,""]
[null,null,null,null,null,null,null,null,null,null,null,null,null,null,null,null,null,""]
[null,null,null,null,null,null,null,null,null,null,null,null,null,null,null,null,null,""]
[null,null,null,null,null,null,null,null,null,null,null,null,null,null,null,null,null,""]
[null,null,null,null,null,null,null,null,null,null,null,null,null,null,null,null,null,""]
[null,null,null,null,null,null,null,null,null,null,null,null,null,null,null,null,null,""]
[null,null,null,null,null,null,null,null,null,null,null,null,null,null,null,null,null,""]
[null,null,null,null,null,null,null,null,null,null,null,null,null,null,null,null,null,""]
[null,null,null,null,null,null,null,null,null,null,null,null,null,null,null,null,null,""]
[null,null,null,null,null,null,null,null,null,null,null,null,null,null,null,null,null,""]
[null,null,null,null,null,null,null,null,null,null,null,null,null,null,null,null,null,""]
[null,null,null,null,null,null,null,null,null,null,null,null,null,null,null,null,null,""]
[null,null,null,null,null,null,null,null,null,null,null,null,null,null,null,null,null,""]
[null,null,null,null,null,null,null,null,null,null,null,null,null,null,null,null,null,""]
[null,null,null,null,null,null,null,null,null,null,null,null,null,null,null,null,null,""]
[null,null,null,null,null,null,null,null,null,null,null,null,null,null,null,null,null,""]
[null,null,null,null,null,null,null,null,null,null,null,null,null,null,null,null,null,""]
[null,null,null,null,null,null,null,null,null,null,null,null,null,null,null,null,null,""]
[null,null,null,null,null,null,null,null,null,null,null,null,null,null,null,null,null,""]
[null,null,null,null,null,null,null,null,null,null,null,null,null,null,null,null,null,""]
[null,null,null,null,null,null,null,null,null,null,null,null,null,null,null,null,null,""]
[null,null,null,null,null,null,null,null,null,null,null,null,null,null,null,null,null,""]
[null,null,null,null,null,null,null,null,null,null,null,null,null,null,null,null,null,""]
[null,null,null,null,null,null,null,null,null,null,null,null,null,null,null,null,null,""]
[null,null,null,null,null,null,null,null,null,null,null,null,null,null,null,null,null,""]
[null,null,null,null,null,null,null,null,null,null,null,null,null,null,null,null,null,""]
[null,null,null,null,null,null,null,null,null,null,null,null,null,null,null,null,null,""]
[null,null,null,null,null,null,null,null,null,null,null,null,null,null,null,null,null,""]
[null,null,null,null,null,null,null,null,null,null,null,null,null,null,null,null,null,""]
[null,null,null,null,null,null,null,null,null,null,null,null,null,null,null,null,null,""]
[null,null,null,null,null,null,null,null,null,null,null,null,null,null,null,null,null,""]
[null,null,null,null,null,null,null,null,null,null,null,null,null,null,null,null,null,""]
[null,null,null,null,null,null,null,null,null,null,null,null,null,null,null,null,null,""]
[null,null,null,null,null,null,null,null,null,null,null,null,null,null,null,null,null,""]
[null,null,null,null,null,null,null,null,null,null,null,null,null,null,null,null,null,""]
[null,null,null,null,null,null,null,null,null,null,null,null,null,null,null,null,null,""]
[null,null,null,null,null,null,null,null,null,null,null,null,null,null,null,null,null,""]
[null,null,null,null,null,null,null,null,null,null,null,null,null,null,null,null,null,""]
[null,null,null,null,null,null,null,null,null,null,null,null,null,null,null,null,null,""]
[null,null,null,null,null,null,null,null,null,null,null,null,null,null,null,null,null,""]
[null,null,null,null,null,null,null,null,null,null,null,null,null,null,null,null,null,""]
[null,null,null,null,null,null,null,null,null,null,null,null,null,null,null,null,null,""]
[null,null,null,null,null,null,null,null,null,null,null,null,null,null,null,null,null,""]
[null,null,null,null,null,null,null,null,null,null,null,null,null,null,null,null,null,""]
[null,null,null,null,null,null,null,null,null,null,null,null,null,null,null,null,null,""]
[null,null,null,null,null,null,null,null,null,null,null,null,null,null,null,null,null,""]
[null,null,null,null,null,null,null,null,null,null,null,null,null,null,null,null,null,""]
[null,null,null,null,null,null,null,null,null,null,null,null,null,null,null,null,null,""]
[null,null,null,null,null,null,null,null,null,null,null,null,null,null,null,null,null,""]
[null,null,null,null,null,null,null,null,null,null,null,null,null,null,null,null,null,""]
[null,null,null,null,null,null,null,null,null,null,null,null,null,null,null,null,null,""]
[null,null,null,null,null,null,null,null,null,null,null,null,null,null,null,null,null,""]
[null,null,null,null,null,null,null,null,null,null,null,null,null,null,null,null,null,""]
[null,null,null,null,null,null,null,null,null,null,null,null,null,null,null,null,null,""]
[null,null,null,null,null,null,null,null,null,null,null,null,null,null,null,null,null,""]
[null,null,null,null,null,null,null,null,null,null,null,null,null,null,null,null,null,""]
[null,null,null,null,null,null,null,null,null,null,null,null,null,null,null,null,null,""]
[null,null,null,null,null,null,null,null,null,null,null,null,null,null,null,null,null,""]
[null,null,null,null,null,null,null,null,null,null,null,null,null,null,null,null,null,""]
[null,null,null,null,null,null,null,null,null,null,null,null,null,null,null,null,null,""]
[null,null,null,null,null,null,null,null,null,null,null,null,null,null,null,null,null,""]
[null,null,null,null,null,null,null,null,null,null,null,null,null,null,null,null,null,""]
[null,null,null,null,null,null,null,null,null,null,null,null,null,null,null,null,null,""]
[null,null,null,null,null,null,null,null,null,null,null,null,null,null,null,null,null,""]
[null,null,null,null,null,null,null,null,null,null,null,null,null,null,null,null,null,""]
[null,null,null,null,null,null,null,null,null,null,null,null,null,null,null,null,null,""]
[null,null,null,null,null,null,null,null,null,null,null,null,null,null,null,null,null,""]
[null,null,null,null,null,null,null,null,null,null,null,null,null,null,null,null,null,""]
[null,null,null,null,null,null,null,null,null,null,null,null,null,null,null,null,null,""]
[null,null,null,null,null,null,null,null,null,null,null,null,null,null,null,null,null,""]
[null,null,null,null,null,null,null,null,null,null,null,null,null,null,null,null,null,""]
[null,null,null,null,null,null,null,null,null,null,null,null,null,null,null,null,null,""]
[null,null,null,null,null,null,null,null,null,null,null,null,null,null,null,null,null,""]
[null,null,null,null,null,null,null,null,null,null,null,null,null,null,null,null,null,""]
[null,null,null,null,null,null,null,null,null,null,null,null,null,null,null,null,null,""]
[null,null,null,null,null,null,null,null,null,null,null,null,null,null,null,null,null,""]
[null,null,null,null,null,null,null,null,null,null,null,null,null,null,null,null,null,""]
[null,null,null,null,null,null,null,null,null,null,null,null,null,null,null,null,null,""]
[null,null,null,null,null,null,null,null,null,null,null,null,null,null,null,null,null,""]
[null,null,null,null,null,null,null,null,null,null,null,null,null,null,null,null,null,""]
[null,null,null,null,null,null,null,null,null,null,null,null,null,null,null,null,null,""]
[null,null,null,null,null,null,null,null,null,null,null,null,null,null,null,null,null,""]
[null,null,null,null,null,null,null,null,null,null,null,null,null,null,null,null,null,""]
[null,null,null,null,null,null,null,null,null,null,null,null,null,null,null,null,null,""]
[null,null,null,null,null,null,null,null,null,null,null,null,null,null,null,null,null,""]
[null,null,null,null,null,null,null,null,null,null,null,null,null,null,null,null,null,""]
[null,null,null,null,null,null,null,null,null,null,null,null,null,null,null,null,null,""]
[null,null,null,null,null,null,null,null,null,null,null,null,null,null,null,null,null,""]
[null,null,null,null,null,null,null,null,null,null,null,null,null,null,null,null,null,""]
[null,null,null,null,null,null,null,null,null,null,null,null,null,null,null,null,null,""]
[null,null,null,null,null,null,null,null,null,null,null,null,null,null,null,null,null,""]
[null,null,null,null,null,null,null,null,null,null,null,null,null,null,null,null,null,""]
[null,null,null,null,null,null,null,null,null,null,null,null,null,null,null,null,null,""]
[null,null,null,null,null,null,null,null,null,null,null,null,null,null,null,null,null,""]
[null,null,null,null,null,null,null,null,null,null,null,null,null,null,null,null,null,""]
[null,null,null,null,null,null,null,null,null,null,null,null,null,null,null,null,null,""]
[null,null,null,null,null,null,null,null,null,null,null,null,null,null,null,null,null,""]
[null,null,null,null,null,null,null,null,null,null,null,null,null,null,null,null,null,""]
[null,null,null,null,null,null,null,null,null,null,null,null,null,null,null,null,null,""]
[null,null,null,null,null,null,null,null,null,null,null,null,null,null,null,null,null,""]
[null,null,null,null,null,null,null,null,null,null,null,null,null,null,null,null,null,""]
[null,null,null,null,null,null,null,null,null,null,null,null,null,null,null,null,null,""]
[null,null,null,null,null,null,null,null,null,null,null,null,null,null,null,null,null,""]
[null,null,null,null,null,null,null,null,null,null,null,null,null,null,null,null,null,""]
[null,null,null,null,null,null,null,null,null,null,null,null,null,null,null,null,null,""]
[null,null,null,null,null,null,null,null,null,null,null,null,null,null,null,null,null,""]
[null,null,null,null,null,null,null,null,null,null,null,null,null,null,null,null,null,""]
[null,null,null,null,null,null,null,null,null,null,null,null,null,null,null,null,null,""]
[null,null,null,null,null,null,null,null,null,null,null,null,null,null,null,null,null,""]
[null,null,null,null,null,null,null,null,null,null,null,null,null,null,null,null,null,""]
[null,null,null,null,null,null,null,null,null,null,null,null,null,null,null,null,null,""]
[null,null,null,null,null,null,null,null,null,null,null,null,null,null,null,null,null,""]
[null,null,null,null,null,null,null,null,null,null,null,null,null,null,null,null,null,""]
[null,null,null,null,null,null,null,null,null,null,null,null,null,null,null,null,null,""]
[null,null,null,null,null,null,null,null,null,null,null,null,null,null,null,null,null,""]
[null,null,null,null,null,null,null,null,null,null,null,null,null,null,null,null,null,""]
[null,null,null,null,null,null,null,null,null,null,null,null,null,null,null,null,null,""]
[null,null,null,null,null,null,null,null,null,null,null,null,null,null,null,null,null,""]
[null,null,null,null,null,null,null,null,null,null,null,null,null,null,null,null,null,""]
[null,null,null,null,null,null,null,null,null,null,null,null,null,null,null,null,null,""]
[null,null,null,null,null,null,null,null,null,null,null,null,null,null,null,null,null,""]
[null,null,null,null,null,null,null,null,null,null,null,null,null,null,null,null,null,""]
[null,null,null,null,null,null,null,null,null,null,null,null,null,null,null,null,null,""]
[null,null,null,null,null,null,null,null,null,null,null,null,null,null,null,null,null,""]
[null,null,null,null,null,null,null,null,null,null,null,null,null,null,null,null,null,""]
[null,null,null,null,null,null,null,null,null,null,null,null,null,null,null,null,null,""]
[null,null,null,null,null,null,null,null,null,null,null,null,null,null,null,null,null,""]
[null,null,null,null,null,null,null,null,null,null,null,null,null,null,null,null,null,""]
[null,null,null,null,null,null,null,null,null,null,null,null,null,null,null,null,null,""]
[null,null,null,null,null,null,null,null,null,null,null,null,null,null,null,null,null,""]
[null,null,null,null,null,null,null,null,null,null,null,null,null,null,null,null,null,""]
[null,null,null,null,null,null,null,null,null,null,null,null,null,null,null,null,null,""]
[null,null,null,null,null,null,null,null,null,null,null,null,null,null,null,null,null,""]
[null,null,null,null,null,null,null,null,null,null,null,null,null,null,null,null,null,""]
[null,null,null,null,null,null,null,null,null,null,null,null,null,null,null,null,null,""]
[null,null,null,null,null,null,null,null,null,null,null,null,null,null,null,null,null,""]
[null,null,null,null,null,null,null,null,null,null,null,null,null,null,null,null,null,""]
[null,null,null,null,null,null,null,null,null,null,null,null,null,null,null,null,null,""]
[null,null,null,null,null,null,null,null,null,null,null,null,null,null,null,null,null,""]
[null,null,null,null,null,null,null,null,null,null,null,null,null,null,null,null,null,""]
[null,null,null,null,null,null,null,null,null,null,null,null,null,null,null,null,null,""]
[null,null,null,null,null,null,null,null,null,null,null,null,null,null,null,null,null,""]
[null,null,null,null,null,null,null,null,null,null,null,null,null,null,null,null,null,""]
[null,null,null,null,null,null,null,null,null,null,null,null,null,null,null,null,null,""]
[null,null,null,null,null,null,null,null,null,null,null,null,null,null,null,null,null,""]
[null,null,null,null,null,null,null,null,null,null,null,null,null,null,null,null,null,""]
[null,null,null,null,null,null,null,null,null,null,null,null,null,null,null,null,null,""]
[null,null,null,null,null,null,null,null,null,null,null,null,null,null,null,null,null,""]
[null,null,null,null,null,null,null,null,null,null,null,null,null,null,null,null,null,""]
[null,null,null,null,null,null,null,null,null,null,null,null,null,null,null,null,null,""]
[null,null,null,null,null,null,null,null,null,null,null,null,null,null,null,null,null,""]
[null,null,null,null,null,null,null,null,null,null,null,null,null,null,null,null,null,""]
[null,null,null,null,null,null,null,null,null,null,null,null,null,null,null,null,null,""]
[null,null,null,null,null,null,null,null,null,null,null,null,null,null,null,null,null,""]
[null,null,null,null,null,null,null,null,null,null,null,null,null,null,null,null,null,""]
[null,null,null,null,null,null,null,null,null,null,null,null,null,null,null,null,null,""]
[null,null,null,null,null,null,null,null,null,null,null,null,null,null,null,null,null,""]
[null,null,null,null,null,null,null,null,null,null,null,null,null,null,null,null,null,""]
[null,null,null,null,null,null,null,null,null,null,null,null,null,null,null,null,null,""]
[null,null,null,null,null,null,null,null,null,null,null,null,null,null,null,null,null,""]
[null,null,null,null,null,null,null,null,null,null,null,null,null,null,null,null,null,""]
[null,null,null,null,null,null,null,null,null,null,null,null,null,null,null,null,null,""]
[null,null,null,null,null,null,null,null,null,null,null,null,null,null,null,null,null,""]
[null,null,null,null,null,null,null,null,null,null,null,null,null,null,null,null,null,""]
[null,null,null,null,null,null,null,null,null,null,null,null,null,null,null,null,null,""]
[null,null,null,null,null,null,null,null,null,null,null,null,null,null,null,null,null,""]
[null,null,null,null,null,null,null,null,null,null,null,null,null,null,null,null,null,""]
[null,null,null,null,null,null,null,null,null,null,null,null,null,null,null,null,null,""]
[null,null,null,null,null,null,null,null,null,null,null,null,null,null,null,null,null,""]
[null,null,null,null,null,null,null,null,null,null,null,null,null,null,null,null,null,""]
[null,null,null,null,null,null,null,null,null,null,null,null,null,null,null,null,null,""]
[null,null,null,null,null,null,null,null,null,null,null,null,null,null,null,null,null,""]
[null,null,null,null,null,null,null,null,null,null,null,null,null,null,null,null,null,""]
[null,null,null,null,null,null,null,null,null,null,null,null,null,null,null,null,null,""]
[null,null,null,null,null,null,null,null,null,null,null,null,null,null,null,null,null,""]
[null,null,null,null,null,null,null,null,null,null,null,null,null,null,null,null,null,""]
[null,null,null,null,null,null,null,null,null,null,null,null,null,null,null,null,null,""]
[null,null,null,null,null,null,null,null,null,null,null,null,null,null,null,null,null,""]
[null,null,null,null,null,null,null,null,null,null,null,null,null,null,null,null,null,""]
[null,null,null,null,null,null,null,null,null,null,null,null,null,null,null,null,null,""]
[null,null,null,null,null,null,null,null,null,null,null,null,null,null,null,null,null,""]
[null,null,null,null,null,null,null,null,null,null,null,null,null,null,null,null,null,""]
[null,null,null,null,null,null,null,null,null,null,null,null,null,null,null,null,null,""]
[null,null,null,null,null,null,null,null,null,null,null,null,null,null,null,null,null,""]
[null,null,null,null,null,null,null,null,null,null,null,null,null,null,null,null,null,""]
[null,null,null,null,null,null,null,null,null,null,null,null,null,null,null,null,null,""]
[null,null,null,null,null,null,null,null,null,null,null,null,null,null,null,null,null,""]
[null,null,null,null,null,null,null,null,null,null,null,null,null,null,null,null,null,""]
[null,null,null,null,null,null,null,null,null,null,null,null,null,null,null,null,null,""]
[null,null,null,null,null,null,null,null,null,null,null,null,null,null,null,null,null,""]
[null,null,null,null,null,null,null,null,null,null,null,null,null,null,null,null,null,""]
[null,null,null,null,null,null,null,null,null,null,null,null,null,null,null,null,null,""]
[null,null,null,null,null,null,null,null,null,null,null,null,null,null,null,null,null,""]
[null,null,null,null,null,null,null,null,null,null,null,null,null,null,null,null,null,""]
[null,null,null,null,null,null,null,null,null,null,null,null,null,null,null,null,null,""]
[null,null,null,null,null,null,null,null,null,null,null,null,null,null,null,null,null,""]
[null,null,null,null,null,null,null,null,null,null,null,null,null,null,null,null,null,""]
[null,null,null,null,null,null,null,null,null,null,null,null,null,null,null,null,null,""]
[null,null,null,null,null,null,null,null,null,null,null,null,null,null,null,null,null,""]
[null,null,null,null,null,null,null,null,null,null,null,null,null,null,null,null,null,""]
[null,null,null,null,null,null,null,null,null,null,null,null,null,null,null,null,null,""]
[null,null,null,null,null,null,null,null,null,null,null,null,null,null,null,null,null,""]
[null,null,null,null,null,null,null,null,null,null,null,null,null,null,null,null,null,""]
[null,null,null,null,null,null,null,null,null,null,null,null,null,null,null,null,null,""]
[null,null,null,null,null,null,null,null,null,null,null,null,null,null,null,null,null,""]
[null,null,null,null,null,null,null,null,null,null,null,null,null,null,null,null,null,""]
[null,null,null,null,null,null,null,null,null,null,null,null,null,null,null,null,null,""]
[null,null,null,null,null,null,null,null,null,null,null,null,null,null,null,null,null,""]
[null,null,null,null,null,null,null,null,null,null,null,null,null,null,null,null,null,""]
[null,null,null,null,null,null,null,null,null,null,null,null,null,null,null,null,null,""]
[null,null,null,null,null,null,null,null,null,null,null,null,null,null,null,null,null,""]
[null,null,null,null,null,null,null,null,null,null,null,null,null,null,null,null,null,""]
[null,null,null,null,null,null,null,null,null,null,null,null,null,null,null,null,null,""]
[null,null,null,null,null,null,null,null,null,null,null,null,null,null,null,null,null,""]
[null,null,null,null,null,null,null,null,null,null,null,null,null,null,null,null,null,""]
[null,null,null,null,null,null,null,null,null,null,null,null,null,null,null,null,null,""]
[null,null,null,null,null,null,null,null,null,null,null,null,null,null,null,null,null,""]
[null,null,null,null,null,null,null,null,null,null,null,null,null,null,null,null,null,""]
[null,null,null,null,null,null,null,null,null,null,null,null,null,null,null,null,null,""]
[null,null,null,null,null,null,null,null,null,null,null,null,null,null,null,null,null,""]
[null,null,null,null,null,null,null,null,null,null,null,null,null,null,null,null,null,""]
[null,null,null,null,null,null,null,null,null,null,null,null,null,null,null,null,null,""]
[null,null,null,null,null,null,null,null,null,null,null,null,null,null,null,null,null,""]
[null,null,null,null,null,null,null,null,null,null,null,null,null,null,null,null,null,""]
[null,null,null,null,null,null,null,null,null,null,null,null,null,null,null,null,null,""]
[null,null,null,null,null,null,null,null,null,null,null,null,null,null,null,null,null,""]
[null,null,null,null,null,null,null,null,null,null,null,null,null,null,null,null,null,""]
[null,null,null,null,null,null,null,null,null,null,null,null,null,null,null,null,null,""]
[null,null,null,null,null,null,null,null,null,null,null,null,null,null,null,null,null,""]
[null,null,null,null,null,null,null,null,null,null,null,null,null,null,null,null,null,""]
[null,null,null,null,null,null,null,null,null,null,null,null,null,null,null,null,null,""]
[null,null,null,null,null,null,null,null,null,null,null,null,null,null,null,null,null,""]
[null,null,null,null,null,null,null,null,null,null,null,null,null,null,null,null,null,""]
[null,null,null,null,null,null,null,null,null,null,null,null,null,null,null,null,null,""]
[null,null,null,null,null,null,null,null,null,null,null,null,null,null,null,null,null,""]
[null,null,null,null,null,null,null,null,null,null,null,null,null,null,null,null,null,""]
[null,null,null,null,null,null,null,null,null,null,null,null,null,null,null,null,null,""]
[null,null,null,null,null,null,null,null,null,null,null,null,null,null,null,null,null,""]
[null,null,null,null,null,null,null,null,null,null,null,null,null,null,null,null,null,""]
[null,null,null,null,null,null,null,null,null,null,null,null,null,null,null,null,null,""]
[null,null,null,null,null,null,null,null,null,null,null,null,null,null,null,null,null,""]
[null,null,null,null,null,null,null,null,null,null,null,null,null,null,null,null,null,""]
[null,null,null,null,null,null,null,null,null,null,null,null,null,null,null,null,null,""]
[null,null,null,null,null,null,null,null,null,null,null,null,null,null,null,null,null,""]
[null,null,null,null,null,null,null,null,null,null,null,null,null,null,null,null,null,""]
[null,null,null,null,null,null,null,null,null,null,null,null,null,null,null,null,null,""]
[null,null,null,null,null,null,null,null,null,null,null,null,null,null,null,null,null,""]
[null,null,null,null,null,null,null,null,null,null,null,null,null,null,null,null,null,""]
[null,null,null,null,null,null,null,null,null,null,null,null,null,null,null,null,null,""]
[null,null,null,null,null,null,null,null,null,null,null,null,null,null,null,null,null,""]
[null,null,null,null,null,null,null,null,null,null,null,null,null,null,null,null,null,""]
[null,null,null,null,null,null,null,null,null,null,null,null,null,null,null,null,null,""]
[null,null,null,null,null,null,null,null,null,null,null,null,null,null,null,null,null,""]
[null,null,null,null,null,null,null,null,null,null,null,null,null,null,null,null,null,""]
[null,null,null,null,null,null,null,null,null,null,null,null,null,null,null,null,null,""]
[null,null,null,null,null,null,null,null,null,null,null,null,null,null,null,null,null,""]
[null,null,null,null,null,null,null,null,null,null,null,null,null,null,null,null,null,""]
[null,null,null,null,null,null,null,null,null,null,null,null,null,null,null,null,null,""]
[null,null,null,null,null,null,null,null,null,null,null,null,null,null,null,null,null,""]
[null,null,null,null,null,null,null,null,null,null,null,null,null,null,null,null,null,""]
[null,null,null,null,null,null,null,null,null,null,null,null,null,null,null,null,null,""]
[null,null,null,null,null,null,null,null,null,null,null,null,null,null,null,null,null,""]
[null,null,null,null,null,null,null,null,null,null,null,null,null,null,null,null,null,""]
[null,null,null,null,null,null,null,null,null,null,null,null,null,null,null,null,null,""]
[null,null,null,null,null,null,null,null,null,null,null,null,null,null,null,null,null,""]
[null,null,null,null,null,null,null,null,null,null,null,null,null,null,null,null,null,""]
[null,null,null,null,null,null,null,null,null,null,null,null,null,null,null,null,null,""]
[null,null,null,null,null,null,null,null,null,null,null,null,null,null,null,null,null,""]
[null,null,null,null,null,null,null,null,null,null,null,null,null,null,null,null,null,""]
[null,null,null,null,null,null,null,null,null,null,null,null,null,null,null,null,null,""]
[null,null,null,null,null,null,null,null,null,null,null,null,null,null,null,null,null,""]
[null,null,null,null,null,null,null,null,null,null,null,null,null,null,null,null,null,""]
[null,null,null,null,null,null,null,null,null,null,null,null,null,null,null,null,null,""]
[null,null,null,null,null,null,null,null,null,null,null,null,null,null,null,null,null,""]
[null,null,null,null,null,null,null,null,null,null,null,null,null,null,null,null,null,""]
[null,null,null,null,null,null,null,null,null,null,null,null,null,null,null,null,null,""]
[null,null,null,null,null,null,null,null,null,null,null,null,null,null,null,null,null,""]
[null,null,null,null,null,null,null,null,null,null,null,null,null,null,null,null,null,""]
[null,null,null,null,null,null,null,null,null,null,null,null,null,null,null,null,null,""]
[null,null,null,null,null,null,null,null,null,null,null,null,null,null,null,null,null,""]
[null,null,null,null,null,null,null,null,null,null,null,null,null,null,null,null,null,""]
[null,null,null,null,null,null,null,null,null,null,null,null,null,null,null,null,null,""]
[null,null,null,null,null,null,null,null,null,null,null,null,null,null,null,null,null,""]
[null,null,null,null,null,null,null,null,null,null,null,null,null,null,null,null,null,""]
[null,null,null,null,null,null,null,null,null,null,null,null,null,null,null,null,null,""]
[null,null,null,null,null,null,null,null,null,null,null,null,null,null,null,null,null,""]
[null,null,null,null,null,null,null,null,null,null,null,null,null,null,null,null,null,""]
[null,null,null,null,null,null,null,null,null,null,null,null,null,null,null,null,null,""]

{"sheet":"IMsch2","index":16,"n_rows":8,"n_cols":18,"rows_kept":8,"cut":false,"hidden":true,"merged":[[1,0,1,5]]}
["Importer Schedule of Tax-Unpaid Receipts"]
["Schedule 2"]
[null,null,null,null,null,null,null,null,null,null,null,null,null,null,null,null,"Import"]
[null,null,"Product","Product","Transporter","Transporter","Transportation","Point of","Point of","Seller","Seller","Date","Bill of Lading /","Gross","Net","Invoiced","Confirmation"]
[null,null,"Type","Name","Name","FEIN","Mode","Origin","Destination","Name","FEIN","Received","Document Number","Gallons","Gallons","Gallons","Number"]
[null,null,"Use FTA Product Codes. \n\nFor a List of Codes,  Click This Button.","Maximum of 35 characters","Maximum of 35 characters","Federal Employer Identification Number of the Transporter for this transaction.\nDo not enter dashes or spaces. If FEIN begins with zero(s) enter a single quote first.\nEx: '012345678","B             Barge\nBA  Book Adj.\nJ              Truck\nPL       Pipeline\nR            Rail\nRT     Removed\n       from Terminal\nS     Ship\nST  Stationary Transfer","Enter either TCN or City and State\nMaximum of 35 characters","Enter either TCN or City and State\nMaximum of 35 characters","Maximum of 35 characters","Federal Employer Identification Number of the Seller for this transaction.\nDo not enter dashes or spaces. If FEIN begins with zero(s) enter a single quote first.\nEx: '012345678","Use format \nMM/DD/YYYY","Bill of Lading /\nManifest Number","Enter whole gallons only. Do not enter commas or decimal points.","Enter whole gallons only. Do not enter commas or decimal points.","Enter whole gallons only. Do not enter commas or decimal points.","Must obtain from West Virginia Registration System."]
[]
[null,null,null,null,null,null,null,null,null,null,null,null,null,null,null,null,null,""]

{"sheet":"IMsch5X","index":17,"n_rows":8,"n_cols":18,"rows_kept":8,"cut":false,"hidden":true,"merged":[[1,0,1,5]]}
["Importer Schedule of On-Highway Motor Fuel Disbursements"]
["Schedule 5X"]
[]
[null,null,"Product","Product","Transporter","Transporter","Transportation","Point of","Point of","Purchaser","Purchaser","Date","Bill of Lading /","Gross","Net","Invoiced"]
[null,null,"Type","Name","Name","FEIN","Mode","Origin","Destination","Name","FEIN","Shipped","Document Number","Gallons","Gallons","Gallons"]
[null,null,"Use FTA Product Codes. \n\nFor a List of Codes,  Click This Button.","Maximum of 35 characters","Maximum of 35 characters","Federal Employer Identification Number of the Transporter for this transaction.\nDo not enter dashes or spaces. If FEIN begins with zero(s) enter a single quote first.\nEx: '012345678","B             Barge\nBA  Book Adj.\nJ              Truck\nPL       Pipeline\nR            Rail\nRT     Removed\n       from Terminal\nS     Ship\nST  Stationary Transfer","Enter either TCN or City and State\nMaximum of 35 characters","Enter either TCN or City and State\nMaximum of 35 characters","Maximum of 35 characters","Federal Employer Identification Number of the Purchaser for this transaction.\nDo not enter dashes or spaces. If FEIN begins with zero(s) enter a single quote first.\nEx: '012345678","Use format \nMM/DD/YYYY","Bill of Lading /\nManifest Number","Enter whole gallons only. Do not enter commas or decimal points.","Enter whole gallons only. Do not enter commas or decimal points.","Enter whole gallons only. Do not enter commas or decimal points."]
[]
[null,null,null,null,null,null,null,null,null,null,null,null,null,null,null,null,null,""]

{"sheet":"IMsch11","index":18,"n_rows":8,"n_cols":18,"rows_kept":8,"cut":false,"hidden":true,"merged":[[1,0,1,5]]}
["Importer Schedule of Diversions INTO West Virginia "]
["Schedule 11"]
[]
[null,null,"Product","Product","Transporter","Transporter","Transportation","Point of","Point of","Purchaser","Purchaser","Date","Bill of Lading /","Gross","Net","Invoiced","Diversion"]
[null,null,"Type","Name","Name","FEIN","Mode","Origin","Destination","Name","FEIN","Loaded","Document Number","Gallons","Gallons","Gallons","Number"]
[null,null,"Use FTA Product Codes. \n\nFor a List of Codes,  Click This Button.","Maximum of 35 characters","Maximum of 35 characters","Federal Employer Identification Number of the Transporter for this transaction.\nDo not enter dashes or spaces. If FEIN begins with zero(s) enter a single quote first.\nEx: '012345678","B             Barge\nBA  Book Adj.\nJ              Truck\nPL       Pipeline\nR            Rail\nRT     Removed\n       from Terminal\nS     Ship\nST  Stationary Transfer","Enter either TCN or City and State\nMaximum of 35 characters","Enter either TCN or City and State\nMaximum of 35 characters","Maximum of 35 characters","Federal Employer Identification Number of the Purchaser for this transaction.\nDo not enter dashes or spaces. If FEIN begins with zero(s) enter a single quote first.\nEx: '012345678","Use format \nMM/DD/YYYY","Bill of Lading /\nManifest Number","Enter whole gallons only. Do not enter commas or decimal points.","Enter whole gallons only. Do not enter commas or decimal points.","Enter whole gallons only. Do not enter commas or decimal points.","Must obtain from West Virginia Registration System."]
[]
[null,null,null,null,null,null,null,null,null,null,null,null,null,null,null,null,null,""]

{"sheet":"IMsch11A","index":19,"n_rows":8,"n_cols":18,"rows_kept":8,"cut":false,"hidden":true,"merged":[[1,0,1,5]]}
["Importer Schedule of Diversions FROM West Virginia to Another State"]
["Schedule 11A"]
[]
[null,null,"Product","Product","Transporter","Transporter","Transportation","Point of","Point of","Purchaser","Purchaser","Date","Bill of Lading /","Gross","Net","Invoiced","Diversion"]
[null,null,"Type","Name","Name","FEIN","Mode","Origin","Destination","Name","FEIN","Loaded","Document Number","Gallons","Gallons","Gallons","Number"]
[null,null,"Use FTA Product Codes. \n\nFor a List of Codes,  Click This Button.","Maximum of 35 characters","Maximum of 35 characters","Federal Employer Identification Number of the Transporter for this transaction.\nDo not enter dashes or spaces. If FEIN begins with zero(s) enter a single quote first.\nEx: '012345678","B             Barge\nBA  Book Adj.\nJ              Truck\nPL       Pipeline\nR            Rail\nRT     Removed\n       from Terminal\nS     Ship\nST  Stationary Transfer","Enter either TCN or City and State\nMaximum of 35 characters","Enter either TCN or City and State\nMaximum of 35 characters","Maximum of 35 characters","Federal Employer Identification Number of the position holder for this transaction.\nDo not enter dashes or spaces. If FEIN begins with zero(s) enter a single quote first.\nEx: '012345678","Use format \nMM/DD/YYYY","Bill of Lading /\nManifest Number","Enter whole gallons only. Do not enter commas or decimal points.","Enter whole gallons only. Do not enter commas or decimal points.","Enter whole gallons only. Do not enter commas or decimal points.","Must obtain from West Virginia Registration System."]
[]
[null,null,null,null,null,null,null,null,null,null,null,null,null,null,null,null,null,""]

{"sheet":"Exporter","index":20,"n_rows":25,"n_cols":31,"rows_kept":25,"cut":false,"hidden":true,"merged":[]}
["West Virginia Exporter Report"]
[null,null,null,null,null,null,null,null,null,null,null,null,null,null,null,null,null,null,null,null,null,null,null,null,null,null,0.152,0.20499999999999999,2021,3.5000000000000003E-2,2.8000000000000001E-2]
[null,"Please complete schedules First.\nDo not change Gallon amounts on this sheet"]
[]
[null,null,null,null,"Undyed","Dyed Diesel /",null,"Aviation",{"$f":"IF(AC2>2013,\"Compressed\",\"Aviation\")","v":"Compressed"},{"$f":"IF(AC2>2013,\"LNG\",\"Clear Kerosene \")","v":"LNG"}]
["Line",null,"Gasoline ","Gasohol",{"$f":"IF(AC2>2013,\"Diesel / Kerosene\",\"Diesel\")","v":"Diesel / Kerosene"},"Dyed Kerosene","Propane",{"$f":"IF(AC2>2013,\"Fuels\",\"Gasoline\")","v":"Fuels"},{"$f":"IF(AC2>2013,\"Natural Gas\",\"Jet Fuel\")","v":"Natural Gas"},"/  Other"]
[]
[null,"REFUND CALCULATION"]
["1","GALLONS EXPORTED\nGo to Schedule…      Get Totals…"]
["2","DIVERSION FROM WV \nGo to Schedule…      Get Totals…"]
["3","TOTAL GALLONS TO BE REFUNDED",{"$f":"C9+C10","v":0},{"$f":"D9+D10","v":0},0,0,0,0,0,0]
["4","TAX RATE",{"$f":"$AA$2+$AB$2","v":0.35699999999999998},{"$f":"$AA$2+$AB$2","v":0.35699999999999998},{"$f":"$AA$2+$AB$2","v":0.35699999999999998},{"$f":"$AA$2","v":0.152},{"$f":"IF($AC$2>2013,$AD$2,$AA$2)","v":3.5000000000000003E-2},{"$f":"$AA$2","v":0.152},{"$f":"IF($AC$2>2013,ROUND($AE$2,3)+$AB$2,$AA$2)","v":0.23299999999999998},{"$f":"IF($AC$2>2013,ROUND($AE$2/1.554,3)+ROUND($AB$2/1.554,3),$AA$2+$AB$2)","v":0.15}]
["5","REFUND DUE",{"$f":"ROUND(C11*C12,2)","v":0},0,0,0,0,0,0,0]
[null,"TAX DUE CALCULATION"]
["1","GALLONS DIVERTED INTO WV\nGo to Schedule…      Get Totals…"]
["2","TAX RATE",{"$f":"$AA$2+$AB$2","v":0.35699999999999998},{"$f":"$AA$2+$AB$2","v":0.35699999999999998},{"$f":"$AA$2+$AB$2","v":0.35699999999999998},{"$f":"$AA$2","v":0.152},{"$f":"IF($AC$2>2013,$AD$2,$AA$2)","v":3.5000000000000003E-2},{"$f":"$AA$2","v":0.152},{"$f":"IF($AC$2>2013,ROUND($AE$2,3)+$AB$2,$AA$2)","v":0.23299999999999998},{"$f":"IF($AC$2>2013,ROUND(($AE$2+$AB$2)/1.554,3),$AA$2+$AB$2)","v":0.15}]
["3","TOTAL TAX DUE",{"$f":"ROUND(C15*C16,2)","v":0},0,0,0,0,0,0,0]
[null,"TAX DUE CALCULATION"]
["1","TOTAL TAX DUE",{"$f":"ROUND(SUM(C17:J17),2)","v":0}]
["2","TOTAL REFUND DUE",{"$f":"ROUND(SUM(C13:J13),2)","v":0}]
["3","Refund Discount\nMultiply line 2 by .0075",0]
["4","BALANCE OF TAX DUE\n",{"$f":"MAX(C19-C20+C21,0)","v":0}]
["5","Overpayment Amount",{"$f":"MAX(C20-C21-C19,0)","v":0}]
[6,"CREDIT"]
[7,"REFUND"]

{"sheet":"EXsch7A","index":21,"n_rows":6,"n_cols":16,"rows_kept":6,"cut":false,"hidden":true,"merged":[[1,0,1,5]]}
["Exporter Schedule of Disbursements"]
["Schedule 7A - Destination state tax collected"]
[]
[null,null,"Product","Product","Transporter","Transporter","Transportation","Point of","Point of","Purchaser","Purchaser","Date","Bill of Lading /","Gross","Net","Invoiced"]
[null,null,"Type","Name","Name","FEIN","Mode","Origin","Destination","Name","FEIN","Loaded","Document Number","Gallons","Gallons","Gallons"]
[null,null,"Use FTA Product Codes. \n\nFor a List of Codes,  Click This Button.","Maximum of 35 characters","Maximum of 35 characters","Federal Employer Identification Number of the Transporter for this transaction.\nDo not enter dashes or spaces. If FEIN begins with zero(s) enter a single quote first.\nEx: '012345678","B             Barge\nBA  Book Adj.\nJ              Truck\nPL       Pipeline\nR            Rail\nRT     Removed\n       from Terminal\nS     Ship\nST  Stationary Transfer","Enter either TCN or City and State\nMaximum of 35 characters","2 Character Jurisdiction Code only","Maximum of 35 characters","Federal Employer Identification Number of the Purchaser for this transaction.\nDo not enter dashes or spaces. If FEIN begins with zero(s) enter a single quote first.\nEx: '012345678","Use format \nMM/DD/YYYY","Bill of Lading /\nManifest Number","Enter whole gallons only. Do not enter commas or decimal points.","Enter whole gallons only. Do not enter commas or decimal points.","Enter whole gallons only. Do not enter commas or decimal points."]

{"sheet":"EXsch7B","index":22,"n_rows":6,"n_cols":17,"rows_kept":6,"cut":false,"hidden":true,"merged":[[1,0,1,5]]}
["Exporter Schedule of Disbursements"]
["Schedule 7B - West Virginia Tax Paid"]
[]
[null,null,"Product","Product","Transporter","Transporter","Transportation","Point of","Point of","Purchaser","Purchaser","Date","Bill of Lading /","Gross","Net","Invoiced","Seller Name / "]
[null,null,"Type","Name","Name","FEIN","Mode","Origin","Destination","Name","FEIN","Loaded","Document Number","Gallons","Gallons","Gallons","Seller TCN"]
[null,null,"Use FTA Product Codes. \n\nFor a List of Codes,  Click This Button.","Maximum of 35 characters","Maximum of 35 characters","Federal Employer Identification Number of the Transporter for this transaction.\nDo not enter dashes or spaces. If FEIN begins with zero(s) enter a single quote first.\nEx: '012345678","B             Barge\nBA  Book Adj.\nJ              Truck\nPL       Pipeline\nR            Rail\nRT     Removed\n       from Terminal\nS     Ship\nST  Stationary Transfer","Enter either TCN or City and State\nMaximum of 35 characters","2 Character Jurisdiction Code only","Maximum of 35 characters","Federal Employer Identification Number of the Purchaser for this transaction.\nDo not enter dashes or spaces. If FEIN begins with zero(s) enter a single quote first.\nEx: '012345678","Use format \nMM/DD/YYYY","Bill of Lading /\nManifest Number","Enter whole gallons only. Do not enter commas or decimal points.","Enter whole gallons only. Do not enter commas or decimal points.","Enter whole gallons only. Do not enter commas or decimal points.","Terminal Control Number (TCN) \nT-55-WV-3181 Marathon\nT-55-WV-3183 Ergon WV\nT-55-WV-3184 Go-Mart\nT-55-WV-3185 St. Mary's\nT-55-WV-3186 Guttman Rlty\nT-55-WV-3188 Baker Oil"]

{"sheet":"EXsch11","index":23,"n_rows":8,"n_cols":18,"rows_kept":8,"cut":false,"hidden":true,"merged":[[1,0,1,5]]}
["Exporter Schedule of Diversions INTO West Virginia"]
["Schedule 11"]
[]
[null,null,"Product","Product","Transporter","Transporter","Transportation","Point of","Point of","Purchaser","Purchaser","Date","Bill of Lading /","Gross","Net","Invoiced","Diversion"]
[null,null,"Type","Name","Name","FEIN","Mode","Origin","Destination","Name","FEIN","Received","Document Number","Gallons","Gallons","Gallons","Number"]
[null,null,"Use FTA Product Codes. \n\nFor a List of Codes,  Click This Button.","Maximum of 35 characters","Maximum of 35 characters","Federal Employer Identification Number of the Transporter for this transaction.\nDo not enter dashes or spaces. If FEIN begins with zero(s) enter a single quote first.\nEx: '012345678","B             Barge\nBA  Book Adj.\nJ              Truck\nPL       Pipeline\nR            Rail\nRT     Removed\n       from Terminal\nS     Ship\nST  Stationary Transfer","Enter either TCN or City and State\nMaximum of 35 characters","2-4 Character Jurisdiction Code only","Maximum of 35 characters","Federal Employer Identification Number of the Purchaser for this transaction.\nDo not enter dashes or spaces. If FEIN begins with zero(s) enter a single quote first.\nEx: '012345678","Use format \nMM/DD/YYYY","Bill of Lading /\nManifest Number","Enter whole gallons only. Do not enter commas or decimal points.","Enter whole gallons only. Do not enter commas or decimal points.","Enter whole gallons only. Do not enter commas or decimal points."]
[]
[null,null,null,null,null,null,null,null,null,null,null,null,null,null,null,null,null,""]

{"sheet":"EXsch11A","index":24,"n_rows":8,"n_cols":18,"rows_kept":8,"cut":false,"hidden":true,"merged":[[1,0,1,5]]}
["Exporter Schedule of Diversions FROM West Virginia to Another State"]
["Schedule 11A"]
[]
[null,null,"Product","Product","Transporter","Transporter","Transportation","Point of","Point of","Purchaser","Purchaser","Date","Bill of Lading /","Gross","Net","Invoiced","Diversion"]
[null,null,"Type","Name","Name","FEIN","Mode","Origin","Destination","Name","FEIN","Received","Document Number","Gallons","Gallons","Gallons","Number"]
[null,null,"Use FTA Product Codes. \n\nFor a List of Codes,  Click This Button.","Maximum of 35 characters","Maximum of 35 characters","Federal Employer Identification Number of the Transporter for this transaction.\nDo not enter dashes or spaces. If FEIN begins with zero(s) enter a single quote first.\nEx: '012345678","B             Barge\nBA  Book Adj.\nJ              Truck\nPL       Pipeline\nR            Rail\nRT     Removed\n       from Terminal\nS     Ship\nST  Stationary Transfer","Enter either TCN or City and State\nMaximum of 35 characters","2-4 Character Jurisdiction Code only","Maximum of 35 characters","Federal Employer Identification Number of the Purchaser for this transaction.\nDo not enter dashes or spaces. If FEIN begins with zero(s) enter a single quote first.\nEx: '012345678","Use format \nMM/DD/YYYY","Bill of Lading /\nManifest Number","Enter whole gallons only. Do not enter commas or decimal points.","Enter whole gallons only. Do not enter commas or decimal points.","Enter whole gallons only. Do not enter commas or decimal points.","Must obtain from West Virginia Registration System."]
[]
[null,null,null,null,null,null,null,null,null,null,null,null,null,null,null,null,null,""]

{"sheet":"Transporter","index":25,"n_rows":11,"n_cols":31,"rows_kept":11,"cut":false,"hidden":true,"merged":[]}
["West Virginia Motor Fuel Transporter"]
[null,null,null,null,null,null,null,null,null,null,null,null,null,null,null,null,null,null,null,null,null,null,null,null,null,null,0.152,null,2021,3.5000000000000003E-2,2.8000000000000001E-2]
[]
[]
[null,null,"Gross","Net "]
["Line",null,"Gallons","Gallons"]
[]
["1","Loaded in WV, Delivered to Another State\nGo to Schedule…      Get Totals…"]
["2","Loaded in Another State, Delivered Into WV\nGo to Schedule…      Get Totals…"]
["3","Loaded and Delivered in WV\nGo to Schedule…      Get Totals…"]
["4","TOTAL  GALLONS TRANSPORTED",{"$f":"C8+C9+C10","v":0},{"$f":"D8+D9+D10","v":0}]

{"sheet":"Xsch1","index":26,"n_rows":8,"n_cols":18,"rows_kept":8,"cut":false,"hidden":true,"merged":[[1,0,1,5]]}
["Motor Fuel Transporter Schedule of Deliveries"]
["Schedule 1  - Loaded IN WV and DELIVERED to ANOTHER State"]
[]
[null,null,"Product","Product","Hiring Company","Hiring Company","Seller","Seller","Transportation","Point of","Delivered to:","Destination","Delivered to:","Date","Bill of Lading /","Gross","Net"]
[null,null,"Type","Name","Name","FEIN","Name","FEIN","Mode","Origin","Name of Purchaser","Address","FEIN","Delivered","Document Number","Gallons","Gallons"]
[null,null,"Use FTA Product Codes. \n\nFor a List of Codes,  Click This Button.","Maximum of 35 characters","Maximum of 35 characters","Federal Employer Identification Number of the Hiring Company for this transaction.\nDo not enter dashes or spaces. If FEIN begins with zero(s) enter a single quote first.\nEx: '012345678","Maximum of 35 characters","Federal Employer Identification Number of the Seller for this transaction.\nDo not enter dashes or spaces. If FEIN begins with zero(s) enter a single quote first.\nEx: '012345678","B             Barge\nBA  Book Adj.\nJ              Truck\nPL       Pipeline\nR            Rail\nRT     Removed\n       from Terminal\nS     Ship\nST  Stationary Transfer","Enter either TCN or City and State\nMaximum of 35 characters","Enter either TCN or Name of Purchaser \nMaximum of 35 characters","Maximum of 50 characters","Federal Employer Identification Number of the purchaser for this transaction.\nDo not enter dashes or spaces. If FEIN begins with zero(s) enter a single quote first.\nEx: '012345678","Use format \nMM/DD/YYYY","Bill of Lading /\nManifest Number","Enter whole gallons only. Do not enter commas or decimal points.","Enter whole gallons only. Do not enter commas or decimal points."]
[]
[null,null,null,null,null,null,null,null,null,null,null,null,null,null,null,null,null,""]

{"sheet":"Xsch2","index":27,"n_rows":8,"n_cols":18,"rows_kept":8,"cut":false,"hidden":true,"merged":[[1,0,1,5]]}
["Motor Fuel Transporter Schedule of Deliveries"]
["Schedule 2  - Loaded IN ANOTHER State and DELIVERED to WV"]
[]
[null,null,"Product","Product","Hiring Company","Hiring Company","Seller","Seller","Transportation","Point of","Delivered to:","Destination","Delivered to:","Date","Bill of Lading /","Gross","Net"]
[null,null,"Type","Name","Name","FEIN","Name","FEIN","Mode","Origin","Name of Purchaser","Address","FEIN","Delivered","Document Number","Gallons","Gallons"]
[null,null,"Use FTA Product Codes. \n\nFor a List of Codes,  Click This Button.","Maximum of 35 characters","Maximum of 35 characters","Federal Employer Identification Number of the Hiring Company for this transaction.\nDo not enter dashes or spaces. If FEIN begins with zero(s) enter a single quote first.\nEx: '012345678","Maximum of 35 characters","Federal Employer Identification Number of the Seller for this transaction.\nDo not enter dashes or spaces. If FEIN begins with zero(s) enter a single quote first.\nEx: '012345678","B             Barge\nBA  Book Adj.\nJ              Truck\nPL       Pipeline\nR            Rail\nRT     Removed\n       from Terminal\nS     Ship\nST  Stationary Transfer","Enter either TCN or City and State\nMaximum of 35 characters","Enter either TCN or Name of Purchaser \nMaximum of 35 characters","Maximum of 50 characters","Federal Employer Identification Number of the purchaser for this transaction.\nDo not enter dashes or spaces. If FEIN begins with zero(s) enter a single quote first.\nEx: '012345678","Use format \nMM/DD/YYYY","Bill of Lading /\nManifest Number","Enter whole gallons only. Do not enter commas or decimal points.","Enter whole gallons only. Do not enter commas or decimal points."]
[]
[null,null,null,null,null,null,null,null,null,null,null,null,null,null,null,null,null,""]

{"sheet":"Xsch3","index":28,"n_rows":8,"n_cols":18,"rows_kept":8,"cut":false,"hidden":true,"merged":[[1,0,1,5]]}
["Motor Fuel Transporter Schedule of Deliveries"]
["Schedule 3  - Loaded in WV and Delivered in WV"]
[]
[null,null,"Product","Product","Hiring Company","Hiring Company","Seller","Seller","Transportation","Point of","Delivered to:","Destination","Delivered to:","Date","Bill of Lading /","Gross","Net"]
[null,null,"Type","Name","Name","FEIN","Name","FEIN","Mode","Origin","Name of Purchaser","Address","FEIN","Delivered","Document Number","Gallons","Gallons"]
[null,null,"Use FTA Product Codes. \n\nFor a List of Codes,  Click This Button.","Maximum of 35 characters","Maximum of 35 characters","Federal Employer Identification Number of the Hiring Company for this transaction.\nDo not enter dashes or spaces. If FEIN begins with zero(s) enter a single quote first.\nEx: '012345678","Maximum of 35 characters","Federal Employer Identification Number of the Seller for this transaction.\nDo not enter dashes or spaces. If FEIN begins with zero(s) enter a single quote first.\nEx: '012345678","B             Barge\nBA  Book Adj.\nJ              Truck\nPL       Pipeline\nR            Rail\nRT     Removed\n       from Terminal\nS     Ship\nST  Stationary Transfer","Enter either TCN or City and State\nMaximum of 35 characters","Enter either TCN or Name of Purchaser \nMaximum of 35 characters","Maximum of 50 characters","Federal Employer Identification Number of the purchaser for this transaction.\nDo not enter dashes or spaces. If FEIN begins with zero(s) enter a single quote first.\nEx: '012345678","Use format \nMM/DD/YYYY","Bill of Lading /\nManifest Number","Enter whole gallons only. Do not enter commas or decimal points.","Enter whole gallons only. Do not enter commas or decimal points."]
[]
[null,null,null,null,null,null,null,null,null,null,null,null,null,null,null,null,null,""]

{"sheet":"Blender","index":29,"n_rows":14,"n_cols":31,"rows_kept":14,"cut":false,"hidden":true,"merged":[]}
["West Virginia Motor Fuel Blender"]
[null,null,null,null,null,null,null,null,null,null,null,null,null,null,null,null,null,null,null,null,null,null,null,null,null,null,0.152,null,2021,3.5000000000000003E-2,2.8000000000000001E-2]
[]
[]
[]
["Line",null,"Amount"]
[]
["1","AMOUNT DUE ON BLENDED PRODUCTS  "]
["2","FULLY TAX-PAID RECEIPTS  "]
["3","VARIABLE RATE TAX-PAID RECEIPTS  "]
["4","TOTAL  TAX DUE",{"$f":"MAX(C8-C9-C10,0)","v":0}]
["5","NON-WAIVABLE INTEREST"]
["6","ADDITIONS TO TAX"]
["7","TOTAL TAX AND LATE FILING CHARGES DUE",{"$f":"C11+C12+C13","v":0}]

{"sheet":"BLsch1","index":30,"n_rows":27,"n_cols":18,"rows_kept":27,"cut":false,"hidden":true,"merged":[[1,0,1,5]]}
["BLENDER’S SCHEDULE OF TAX-PAID RECEIPTS"]
["Schedule 1"]
[]
[null,null,"Product","Product","Transporter","Transporter","Transportation","Point of","Point of","Seller","Seller","Date","Bill of Lading /","Gross","Net","Invoiced"]
[null,null,"Type","Name","Name","FEIN","Mode","Origin","Destination","Name","FEIN","Received","Document Number","Gallons","Gallons","Gallons"]
[null,null,"Use FTA Product Codes. \n\nFor a List of Codes,  Click This Button.","Maximum of 35 characters","Maximum of 35 characters","Federal Employer Identification Number of the Transporter for this transaction.\nDo not enter dashes or spaces. If FEIN begins with zero(s) enter a single quote first.\nEx: '012345678","B             Barge\nBA  Book Adj.\nJ              Truck\nPL       Pipeline\nR            Rail\nRT     Removed\n       from Terminal\nS     Ship\nST  Stationary Transfer","Enter either TCN or City and State\nMaximum of 35 characters","Enter either TCN or City and State\nMaximum of 35 characters","Maximum of 35 characters","Federal Employer Identification Number of the Seller for this transaction.\nDo not enter dashes or spaces. If FEIN begins with zero(s) enter a single quote first.\nEx: '012345678","Use format \nMM/DD/YYYY","Bill of Lading /\nManifest Number","Enter whole gallons only. Do not enter commas or decimal points.","Enter whole gallons only. Do not enter commas or decimal points.","Enter whole gallons only. Do not enter commas or decimal points."]
[]
[]
[]
[]
[]
[]
[]
[]
[]
[]
[]
[]
[]
[]
[]
[]
[]
[]
[]
[null,null,null,null,null,null,null,null,null,null,null,null,null,null,null,null,"",""]
[null,null,null,null,null,null,null,null,null,null,null,null,null,null,null,null,"",""]

{"sheet":"BLsch2","index":31,"n_rows":8,"n_cols":18,"rows_kept":8,"cut":false,"hidden":true,"merged":[[1,0,1,5]]}
["BLENDER’S SCHEDULE OF TAX-UNPAID RECEIPTS"]
["Schedule 2"]
[]
[null,null,"Product","Product","Transporter","Transporter","Transportation","Point of","Point of","Seller","Seller","Date","Bill of Lading /","Gross","Net","Invoiced"]
[null,null,"Type","Name","Name","FEIN","Mode","Origin","Destination","Name","FEIN","Received","Document Number","Gallons","Gallons","Gallons"]
[null,null,"Use FTA Product Codes. \n\nFor a List of Codes,  Click This Button.","Maximum of 35 characters","Maximum of 35 characters","Federal Employer Identification Number of the Transporter for this transaction.\nDo not enter dashes or spaces. If FEIN begins with zero(s) enter a single quote first.\nEx: '012345678","B             Barge\nBA  Book Adj.\nJ              Truck\nPL       Pipeline\nR            Rail\nRT     Removed\n       from Terminal\nS     Ship\nST  Stationary Transfer","Enter either TCN or City and State\nMaximum of 35 characters","Enter either TCN or City and State\nMaximum of 35 characters","Maximum of 35 characters","Federal Employer Identification Number of the Seller for this transaction.\nDo not enter dashes or spaces. If FEIN begins with zero(s) enter a single quote first.\nEx: '012345678","Use format \nMM/DD/YYYY","Bill of Lading /\nManifest Number","Enter whole gallons only. Do not enter commas or decimal points.","Enter whole gallons only. Do not enter commas or decimal points.","Enter whole gallons only. Do not enter commas or decimal points."]
[]
[null,null,null,null,null,null,null,null,null,null,null,null,null,null,null,null,null,""]

{"sheet":"Distributor","index":32,"n_rows":18,"n_cols":31,"rows_kept":18,"cut":false,"hidden":true,"merged":[]}
["Distributor"]
[null,null,null,null,null,null,null,null,null,null,null,null,null,null,null,null,null,null,null,null,null,null,null,null,null,null,0.152,0.20499999999999999,2021,3.5000000000000003E-2,2.8000000000000001E-2]
[]
[]
[null,null,null,null,"Undyed","Dyed Diesel /",null,"Aviation",{"$f":"IF(AC2>2013,\"Compressed\",\"Aviation\")","v":"Compressed"},{"$f":"IF(AC2>2013,\"LNG\",\"Clear Kerosene \")","v":"LNG"}]
["Line",null,"Gasoline ","Gasohol",{"$f":"IF(AC2>2013,\"Diesel / Kerosene\",\"Diesel\")","v":"Diesel / Kerosene"},"Dyed Kerosene","Propane",{"$f":"IF(AC2>2013,\"Fuels\",\"Gasoline\")","v":"Fuels"},{"$f":"IF(AC2>2013,\"Natural Gas\",\"Jet Fuel\")","v":"Natural Gas"},"/  Other"]
[]
["1","TOTAL GALLONS TAX UNPAID\nGo to Schedule…      Get Totals…",0,42075,13796,50388,9189,8838,9885,139853]
["2","TAX RATE",{"$f":"$AA$2+$AB$2","v":0.35699999999999998},{"$f":"$AA$2+$AB$2","v":0.35699999999999998},{"$f":"$AA$2+$AB$2","v":0.35699999999999998},{"$f":"$AA$2","v":0.152},{"$f":"IF($AC$2>2013,$AD$2,$AA$2)","v":3.5000000000000003E-2},{"$f":"$AA$2","v":0.152},{"$f":"IF($AC$2>2013,ROUND($AE$2,3)+$AB$2,$AA$2)","v":0.23299999999999998},{"$f":"IF($AC$2>2013,ROUND($AE$2/1.554,3)+ROUND($AB$2/1.554,3),$AA$2+$AB$2)","v":0.15}]
["3","TAX DUE",{"$f":"ROUND(C8*C9,2)","v":0},15020.78,4925.17,7658.98,321.62,1343.38,2303.21,20977.95]
["4","EXEMPT FUEL (GALLONS)\nGo to Schedule…      Get Totals…",null,null,null,null,15910,9165,null,7369]
["5",{"$f":"CONCATENATE(\"TAX DUE  (Line 4 x \",$AB$2,\")\")","v":"TAX DUE  (Line 4 x 0.205)"},null,null,null,null,{"$f":"IF($AC$2>2013,ROUND(G11*ROUND($AB$2/1.367,3),2),ROUND(G11*$AB$2,2))","v":2386.5},{"$f":"IF('Select Return to Export'!G5>DATE(2017,6,30),0,ROUND(H11*$AB$2,2))","v":1878.83},{"$f":"IF($AC$2>2013,0,ROUND(I11*$AB$2,2))","v":0},{"$f":"IF($AC$2>2013,ROUND(J11*0.132,2),0)","v":972.71}]
["6","TOTAL TAX DUE",{"$f":"C10+C12","v":0},15020.78,4925.17,7658.98,2708.12,3222.21,2303.21,21950.66]
[]
["7","GRAND TOTAL TAX DUE",{"$f":"ROUND(SUM(C13:J13),2)","v":57789.13}]
["8","NON-WAIVABLE INTEREST"]
["9","ADDITIONS TO TAX"]
["10","TOTAL TAX AND LATE FILING CHARGES DUE",{"$f":"C15+C16+C17","v":57789.13}]

{"sheet":"DIsch1","index":33,"n_rows":6,"n_cols":16,"rows_kept":6,"cut":false,"hidden":true,"merged":[[1,0,1,5]]}
["DISTRIBUTOR SCHEDULE OF TAX-PAID RECEIPTS"]
["Schedule 1"]
[]
[null,null,"Product","Product","Transporter","Transporter","Transportation","Point of","Point of","Seller","Seller","Date","Bill of Lading /","Gross","Net","Invoiced"]
[null,null,"Type","Name","Name","FEIN","Mode","Origin","Destination","Name","FEIN","Received","Document Number","Gallons","Gallons","Gallons"]
[null,null,"Use FTA Product Codes. \n\nFor a List of Codes,  Click This Button.","Maximum of 35 characters","Maximum of 35 characters","Federal Employer Identification Number of the Transporter for this transaction.\nDo not enter dashes or spaces. If FEIN begins with zero(s) enter a single quote first.\nEx: '012345678","B             Barge\nBA  Book Adj.\nJ              Truck\nPL       Pipeline\nR            Rail\nRT     Removed\n       from Terminal\nS     Ship\nST  Stationary Transfer","Enter either TCN or City and State\nMaximum of 35 characters","Enter either TCN or City and State\nMaximum of 35 characters","Maximum of 35 characters","Federal Employer Identification Number of the Seller for this transaction.\nDo not enter dashes or spaces. If FEIN begins with zero(s) enter a single quote first.\nEx: '012345678","Use format \nMM/DD/YYYY","Bill of Lading /\nManifest Number","Enter whole gallons only. Do not enter commas or decimal points.","Enter whole gallons only. Do not enter commas or decimal points.","Enter whole gallons only. Do not enter commas or decimal points."]

{"sheet":"DIsch2","index":34,"n_rows":8,"n_cols":18,"rows_kept":8,"cut":false,"hidden":true,"merged":[[1,0,1,5]]}
["DISTRIBUTOR SCHEDULE OF TAX-UNPAID RECEIPTS"]
["Schedule 2"]
[]
[null,null,"Product","Product","Transporter","Transporter","Transportation","Point of","Point of","Seller","Seller","Date","Bill of Lading /","Gross","Net","Invoiced"]
[null,null,"Type","Name","Name","FEIN","Mode","Origin","Destination","Name","FEIN","Received","Document Number","Gallons","Gallons","Gallons"]
[null,null,"Use FTA Product Codes. \n\nFor a List of Codes,  Click This Button.","Maximum of 35 characters","Maximum of 35 characters","Federal Employer Identification Number of the Transporter for this transaction.\nDo not enter dashes or spaces. If FEIN begins with zero(s) enter a single quote first.\nEx: '012345678","B             Barge\nBA  Book Adj.\nJ              Truck\nPL       Pipeline\nR            Rail\nRT     Removed\n       from Terminal\nS     Ship\nST  Stationary Transfer","Enter either TCN or City and State\nMaximum of 35 characters","Enter either TCN or City and State\nMaximum of 35 characters","Maximum of 35 characters","Federal Employer Identification Number of the Seller for this transaction.\nDo not enter dashes or spaces. If FEIN begins with zero(s) enter a single quote first.\nEx: '012345678","Use format \nMM/DD/YYYY","Bill of Lading /\nManifest Number","Enter whole gallons only. Do not enter commas or decimal points.","Enter whole gallons only. Do not enter commas or decimal points.","Enter whole gallons only. Do not enter commas or decimal points."]
[]
[null,null,null,null,null,null,null,null,null,null,null,null,null,null,null,null,null,""]

{"sheet":"DIsch5","index":35,"n_rows":8,"n_cols":18,"rows_kept":8,"cut":false,"hidden":true,"merged":[[1,0,1,5]]}
["DISTRIBUTOR SCHEDULE OF DISBURSEMENTS"]
["Schedule 5"]
[]
[null,null,"Product","Product","Transporter","Transporter","Transportation","Point of","Point of","Purchaser","Purchaser","Date","Bill of Lading /","Gross","Net","Invoiced"]
[null,null,"Type","Name","Name","FEIN","Mode","Origin","Destination","Name","FEIN","Shipped","Document Number","Gallons","Gallons","Gallons"]
[null,null,"Use FTA Product Codes. \n\nFor a List of Codes,  Click This Button.","Maximum of 35 characters","Maximum of 35 characters","Federal Employer Identification Number of the Transporter for this transaction.\nDo not enter dashes or spaces. If FEIN begins with zero(s) enter a single quote first.\nEx: '012345678","B             Barge\nBA  Book Adj.\nJ              Truck\nPL       Pipeline\nR            Rail\nRT     Removed\n       from Terminal\nS     Ship\nST  Stationary Transfer","Enter either TCN or City and State\nMaximum of 35 characters","Enter either TCN or City and State\nMaximum of 35 characters","Maximum of 35 characters","Federal Employer Identification Number of the position holder for this transaction.\nDo not enter dashes or spaces. If FEIN begins with zero(s) enter a single quote first.\nEx: '012345678","Use format \nMM/DD/YYYY","Bill of Lading /\nManifest Number","Enter whole gallons only. Do not enter commas or decimal points.","Enter whole gallons only. Do not enter commas or decimal points.","Enter whole gallons only. Do not enter commas or decimal points."]
[]
[null,null,null,null,null,null,null,null,null,null,null,null,null,null,null,null,null,""]

{"sheet":"DIsch5X","index":36,"n_rows":6,"n_cols":16,"rows_kept":6,"cut":false,"hidden":true,"merged":[[1,0,1,5]]}
["DISTRIBUTOR SCHEDULE OF ON-HIGHWAY EXEMPT FUEL DISBURSEMENTS"]
["Schedule 5X"]
[]
[null,null,"Product","Product","Transporter","Transporter","Transportation","Point of","Point of","Purchaser","Purchaser","Date","Bill of Lading /","Gross","Net","Invoiced"]
[null,null,"Type","Name","Name","FEIN","Mode","Origin","Destination","Name","FEIN","Shipped","Document Number","Gallons","Gallons","Gallons"]
[null,null,"Use FTA Product Codes. \n\nFor a List of Codes,  Click This Button.","Maximum of 35 characters","Maximum of 35 characters","Federal Employer Identification Number of the Transporter for this transaction.\nDo not enter dashes or spaces. If FEIN begins with zero(s) enter a single quote first.\nEx: '012345678","B             Barge\nBA  Book Adj.\nJ              Truck\nPL       Pipeline\nR            Rail\nRT     Removed\n       from Terminal\nS     Ship\nST  Stationary Transfer","Enter either TCN or City and State\nMaximum of 35 characters","Enter either TCN or City and State\nMaximum of 35 characters","Maximum of 35 characters","Federal Employer Identification Number of the Purchaser for this transaction.\nDo not enter dashes or spaces. If FEIN begins with zero(s) enter a single quote first.\nEx: '012345678","Use format \nMM/DD/YYYY","Bill of Lading /\nManifest Number","Enter whole gallons only. Do not enter commas or decimal points.","Enter whole gallons only. Do not enter commas or decimal points.","Enter whole gallons only. Do not enter commas or decimal points."]

{"sheet":"DIsch6","index":37,"n_rows":8,"n_cols":8,"rows_kept":8,"cut":false,"hidden":true,"merged":[[1,0,1,4]]}
["DISTRIBUTOR FIELD GAS CONSUMPTION SCHEDULE"]
["Schedule 6"]
[]
[null,null,"Date","Type","Location","Total MCF"]
[null,null,"of Consumption","of Equipment","of Equipment","Consumed"]
[null,null,null,"Maximum of 35 characters","Address including county.                                                                  Maximum of 35 characters","Enter whole numbers only. Do not enter commas or decimal points."]
[]
[null,null,null,null,null,null,null,""]

{"sheet":"NoMacro","index":38,"n_rows":36,"n_cols":11,"rows_kept":36,"cut":false,"hidden":false,"merged":[]}
[null,null,null,null,null,"MACROS ARE DISABLED!!"]
[null,null,null,null,null,"(Or SAVE is in progress…)"]
[]
[]
[null,"In order to use this worksheet, Macros Must be ENABLED."]
[]
[null,"If you chose to disable Macros when the sheet loaded, Close, Re-Open, and Enable Macros"]
[]
[null,"You may have to change Excel's Macro security settings to Medium"]
[]
[null,"To Change Macro Security settings -(Excel 97-2003): "]
[null,null,"-Go to the Tools Menu, Select Options"]
[null,null,"-Go to the Security Tab"]
[null,null,"-Press the \"Macro Security\" Button"]
[null,null,"-Choose medium."]
[null,null,"-Close Excel, Re-Open, and Enable Macros"]
[]
[null,"To Change Macro Security settings -(Excel 2007): "]
[null,null,"-Click the \"Office button\""]
[null,null,"-Click the \"Excel Options\" button in the lower right."]
[null,null,"-Click the \"Trust Center\" button on the left. Then, at the bottom right, select \"Trust Center Settings\" "]
[null,null,"-Select \"Macro Settings,\" then select the radio button for \"Disable all macros with notification.\""]
[null,null,"-Close Excel, Re-Open, and Enable Macros"]
[]
[]
[null,"If you are still seeing this screen after enabling macros, it may be one of the following:"]
[null,null,"-Your anti-virus software may be blocking execution of the macro - try temporarily disabling Your anti-virus"]
[null,null,"-Visual Basic for Applications (VBA) may not have been installed with excel. Re-install excel, and ensure VBA is selected"]
[null,null,"-The workbook may have been saved in a format that does not include macros. (.xlsx) Use .xls or .xlsm"]
[]
[]
[]
[]
[]
[]
[null,null,null,null,null,null,null,"No Macro BSOD",null,null,"v 1.03"]